Cogmind - Beta 12 @@@ ROGUE MODE // 2023.11.26 @ 18:57:58 Player: Infomantis Result: Escaped! Performance ------------- Evolutions (9) 4500 Regions Visited (31) 6200 Robots Destroyed (323) 1615 Value Destroyed (16045) 16045 Prototype IDs (83) 1660 Alien Tech Used (2) 400 Bonus (16416) 16416 TOTAL SCORE: 46836 Bonus ------- High Alert Combat Kills 2102 Follower Combat Kills 4060 Entered Garrisons 1600 Used RIF Installer 5500 Network Hubs Disabled 200 Aligned with FarCom 300 Met R17 at Cetus 500 Hacked Protovariant 500 Win 3000 Friendly Fire -1346 Cogmind --------- Core Integrity 1387/1600 Matter 280/300 Energy 262/280 System Corruption 0% Temperature Cool (12) Movement Walking (118) Location To Epsilon Eridani Parts ------- > --- POWER (2) -------- Light Quantum Reactor Light Quantum Reactor > --- PROPULSION (6) --- Myomer Leg Biometal Leg Centrium Leg Centrium Leg Centrium Leg Centrium Leg > --- UTILITY (15) ----- Coolant Network High-capacity Storage Unit Experimental Targeting Computer Phase Armor Graphene Brace Advanced Shield Generator System Mapper Relay Coupler [NC] (10) Relay Coupler [Swarmer] (37) Relay Coupler [Sentry] (3) Relay Coupler [Hunter] (6) Advanced Dynamic Insulation System (fused) Drone Bay (2/2) > --- WEAPON (2) ------- Precision Phase Gun Precision Phase Gun > --- INVENTORY (20) --- Centrium Leg Centrium Leg Superbattery (1500) Cloaking Device Advanced Force Field Phase Redirector Relay Coupler [NC] (33) Relay Coupler [NC] (33) Relay Coupler [Hunter] (20) Relay Coupler [Proto] (10) Trap Reconfigurator Terrabomb Phase Gun Compact HERF Cannon Heavy Neutron Cannon Hellfire Missile Launcher Sigix Terminator Advanced Datajack Advanced Remote Datajack Peak State ------------ > --- POWER ------------ Light Quantum Reactor Light Quantum Reactor > --- PROPULSION ------- Myomer Leg Biometal Leg Centrium Leg Centrium Leg Centrium Leg Centrium Leg > --- UTILITY ---------- Coolant Network High-capacity Storage Unit Experimental Targeting Computer Phase Armor Advanced Shield Generator System Mapper Relay Coupler [NC] Relay Coupler [Swarmer] Relay Coupler [Sentry] Relay Coupler [Hunter] Advanced Dynamic Insulation System Trap Reconfigurator Drone Bay > --- WEAPON ----------- Precision Phase Gun Precision Phase Gun > --- INVENTORY -------- Centrium Leg Centrium Leg Superbattery Cloaking Device Graphene Brace Advanced Force Field Phase Redirector Relay Coupler [NC] Relay Coupler [NC] Relay Coupler [Hunter] Relay Coupler [Proto] Terrabomb Phase Gun Compact HERF Cannon Heavy Neutron Cannon Hellfire Missile Launcher Sigix Terminator Advanced Datajack Advanced Remote Datajack [Rating: 206] Favorites ----------- Power Micro Fission Core Engine Light Angular Momentum Engine Power Core Micro Fission Core Reactor Light Quantum Reactor Propulsion Advanced Myomer Leg Treads Light Treads Leg Advanced Myomer Leg Wheel Armored Wheel Hover Unit Gravmag Array Flight Unit Field Propulsion Array Utility High-capacity Storage Unit Device Advanced Cooling System Storage High-capacity Storage Unit Processor Targeting Computer Hackware Relay Coupler [NC] Protection Hardened Medium Armor Plating Artifact Phase Armor Weapon Improved Assault Rifle Energy Gun Precision Phase Gun Energy Cannon Advanced Plasma Cannon Ballistic Gun Improved Assault Rifle Ballistic Cannon Bore Cannon Launcher Mini Grenade Launcher Special Weapon Improved Remote Datajack Impact Weapon Powered Hammer Slashing Weapon Great Axe Piercing Weapon Lance Special Melee Weapon Improved Datajack Build | -11 -10 -10 -9 -9 -9 -8 -8 -8 -8 -8 -7 -7 -6 -6 -5 -5 -5 -5 -4 -4 -4 -4 -4 -3 -3 -3 -3 -3 -2 -2 -1 ------- Run | Jun Mat Min Mat Min Exi Min Mat Gar Mat Gar Fac Gar Fac Gar Fac Gar Fac Gar Fac Ext Cet Arc Hub Res Gar Res Tes Gar Res Qua Acc Slots Evolved 18 | . . . 2 . . . 2 . . . 2 . 2 . 2 . . . 2 . . . . 2 . . . . 2 . 2 Power 1 | . . . . . . . . . . . . . 1 . . . . . . . . . . . . . . . . . . Propulsion 4 | . . . 1 . . . 1 . . . 1 . . . . . . . 1 . . . . . . . . . . . . Utility 13 | . . . 1 . . . 1 . . . 1 . 1 . 2 . . . 1 . . . . 2 . . . . 2 . 2 Weapon . | . . . . . . . . . . . . . . . . . . . . . . . . . . . . . . . . Parts Attached 694 | 7 20 9 19 7 3 2 33 25 18 20 27 17 4 40 31 23 5 10 35 47 13 16 . 37 37 21 30 70 16 22 30 Power 49 | 1 5 1 1 . . . 1 2 1 1 . 1 1 1 8 1 1 . 1 4 2 . . 1 2 3 . 7 1 2 . Engine 13 | 1 5 . . . . . 1 2 1 1 . . 1 1 . . . . . . . . . . . . . . . . . Core 21 | . . 1 1 . . . . . . . . 1 . . 8 1 1 . 1 4 1 . . . 2 . . . . . . Reactor 15 | . . . . . . . . . . . . . . . . . . . . . 1 . . 1 . 3 . 7 1 2 . Propulsion 140 | 2 5 . 4 . 1 1 11 1 5 4 5 6 . 9 6 8 2 2 15 6 1 2 . 1 5 2 8 15 2 6 5 Treads 48 | . 5 . 4 . 1 1 10 1 4 4 2 1 . 1 1 . . . 6 . 1 1 . . . 2 3 . . . . Leg 77 | 2 . . . . . . . . . . 3 2 . 7 2 7 2 2 5 6 . 1 . 1 5 . 4 15 2 6 5 Wheel 11 | . . . . . . . 1 . 1 . . 3 . 1 2 . . . 2 . . . . . . . 1 . . . . Hover 2 | . . . . . . . . . . . . . . . 1 . . . 1 . . . . . . . . . . . . Flight 2 | . . . . . . . . . . . . . . . . 1 . . 1 . . . . . . . . . . . . Utility 264 | 2 3 1 6 3 . . 11 14 7 5 13 4 3 14 11 7 2 5 9 17 3 8 . 22 21 10 14 23 6 6 14 Device 131 | 1 1 . 1 2 . . 6 8 4 2 6 3 1 7 7 4 1 1 5 6 . 4 . 12 8 5 7 14 1 3 11 Storage 8 | 1 2 . 1 . . . 1 . . . . . . . . . . . 1 1 . . . . 1 . . . . . . Processor 18 | . . . 1 . . . . 1 . . 3 . . 1 2 . . 1 . 1 . 1 . 2 . 1 1 3 . . . Hackware 33 | . . 1 . . . . . . . 1 . . 1 4 . 2 1 3 1 1 1 1 . 1 5 2 3 4 1 . . Protection 72 | . . . 3 1 . . 4 5 3 2 4 1 1 2 2 1 . . 2 8 2 2 . 7 7 2 3 2 4 1 3 Artifact 2 | . . . . . . . . . . . . . . . . . . . . . . . . . . . . . . 2 . Weapon 241 | 2 7 7 8 4 2 1 10 8 5 10 9 6 . 16 6 7 . 3 10 20 7 6 . 13 9 6 8 25 7 8 11 Energy Gun 41 | . . . . . . . 3 2 1 2 1 1 . . . 1 . . 2 2 1 1 . 1 1 1 . 10 3 3 5 Energy Cannon 21 | . . . 1 . . . 1 . . . 1 . . 2 2 1 . 1 1 . . . . . . . . 3 1 3 4 Ballistic Gun 77 | 2 6 4 4 2 1 1 3 4 3 4 4 3 . 6 . 3 . 1 3 . 1 2 . 5 3 3 5 4 . . . Ballistic Cannon 23 | . . . . . . . 2 . . . . . . 2 . 1 . . . 10 3 2 . 2 1 . . . . . . Launcher 30 | . 1 2 3 2 . . 1 . 1 1 2 2 . 2 1 . . 1 . . . . . 2 2 1 1 4 . . 1 Special Weapon 27 | . . . . . . . . . . 2 . . . 3 2 1 . . 2 1 2 . . 2 2 1 2 2 3 1 1 Impact Weapon 4 | . . . . . . . . . . . . . . 1 1 . . . 2 . . . . . . . . . . . . Slashing Weapon 3 | . . . . . . . . . . . 1 . . . . . . . . 1 . . . . . . . . . 1 . Piercing Weapon 2 | . . . . . . . . . . . . . . . . . . . . 1 . . . 1 . . . . . . . Special Melee Weapon 13 | . . 1 . . 1 . . 2 . 1 . . . . . . . . . 5 . 1 . . . . . 2 . . . Unidentified Prototypes 33 | . 1 . 1 . . . 2 . 1 . 1 . . . 1 . . . . 1 4 . . 2 . 1 5 10 . 3 . Corrupted Parts 7 | . . 2 . . . . . . . . . . . 1 . . . . 2 1 . . . . . . . 1 . . . System Corruption 33 | . . 4 . . . . . . . . . . . 1 . . . . 14 3 . . . . . . . 11 . . . Parts Lost 123 | . . 1 . . . . 2 1 1 2 6 1 . 18 10 7 2 12 14 5 . . . 1 10 . 9 15 3 2 1 Power 18 | . . . . . . . 1 1 1 . . 1 . 2 . 1 1 . 1 2 . . . . 3 . . 3 . 1 . Propulsion 41 | . . . . . . . . . . 1 3 . . 8 5 4 . 5 5 . . . . . 2 . 3 5 . . . Utility 45 | . . 1 . . . . 1 . . 1 2 . . 6 3 2 1 4 4 3 . . . 1 3 . 6 2 3 1 1 Weapon 19 | . . . . . . . . . . . 1 . . 2 2 . . 3 4 . . . . . 2 . . 5 . . . Highest Loss Streak 10 | . . 1 . . . . 2 1 1 1 4 1 . 10 3 4 2 3 8 2 . . . 1 4 . 7 5 2 2 1 To Critical Strikes 5 | . . . . . . . . . . . . . . . 1 . . . . 1 . . . . . . 2 1 . . . Average Slot Usage (%) 92 | . 100 100 100 100 100 100 100 96 99 93 86 93 98 84 83 91 97 88 71 98 96 92 89 92 90 97 89 85 87 90 91 Engine 2 | . 14 6 . . . . 1 8 8 9 7 1 4 6 . . . . . . . . . . . . . . . . . Core 5 | . . 7 11 11 11 11 7 . . . . 5 6 . 9 10 10 11 8 9 9 10 10 8 3 4 4 . . . . Reactor 1 | . . . . . . . . . . . . . . . . . . . . . . . . . 3 3 4 7 7 7 8 Treads 14 | . 24 28 33 33 33 33 36 36 36 31 23 8 6 2 7 1 . . 6 2 1 5 5 4 3 4 4 3 . . . Leg 12 | . 3 . . . . . . . . . 5 17 13 20 10 23 29 27 7 28 28 20 21 19 18 22 21 18 24 26 24 Device 9 | . 14 10 . 2 11 11 10 10 8 7 9 7 13 11 13 16 15 6 4 5 5 7 5 13 8 10 7 4 6 9 17 Storage 7 | . 14 14 11 11 11 11 9 9 9 9 7 7 6 6 5 5 5 5 4 5 5 5 5 4 4 4 4 4 4 4 4 Processor 6 | . . . 11 11 11 11 7 7 9 8 14 . . 4 5 . . 2 2 . 5 5 10 12 16 8 4 4 4 4 4 Hackware 9 | . . 3 2 . . . . . . 1 . . 6 10 11 10 17 21 21 21 13 13 15 11 14 23 21 26 24 22 20 Protection 5 | . . . 8 8 . . 8 8 9 8 4 15 13 3 2 4 5 . 2 12 15 11 5 5 4 2 3 3 5 2 2 Energy Gun 2 | . . . . . . . 5 8 7 3 6 . . . . 1 . . . . . . . . . 1 . 3 7 4 6 Ballistic Gun 8 | . 28 27 21 18 19 22 11 6 10 13 3 14 13 6 1 4 5 4 3 . 1 1 10 7 6 4 8 2 . . . Naked Turns . | . . . . . . . . . . . . . . . . . . . . . . . . . . . . . . . . Heaviest Build 158 | 13 90 32 41 41 32 33 66 68 66 70 89 92 84 106 82 81 89 89 78 104 110 116 97 109 104 102 123 123 117 152 158 Greatest Support 174 | 20 40 40 60 60 60 62 92 92 92 117 115 69 22 83 57 100 100 96 120 120 120 120 120 120 143 143 140 134 169 174 173 Greatest Overweight (x) 8 | . 2 . . . . . . . . 1 1 6 3 8 5 3 . 4 7 . . 1 . . 1 . 1 2 . . . Average Overweight (x) . | . . . . . . . . . . . . 2 3 1 1 . . . 2 . . . . . . . . . . . . Largest Inventory Capacity 25 | 8 25 15 15 15 15 15 20 20 20 20 20 20 20 20 20 20 20 20 20 20 20 20 20 20 20 20 20 20 20 20 20 Average Capacity 19 | 7 15 15 15 15 15 15 19 20 20 20 20 20 20 20 20 20 20 20 19 20 20 20 20 20 20 20 20 20 20 20 20 Most Carried 22 | 8 22 15 15 15 15 15 20 20 20 20 20 20 20 20 20 20 20 20 20 20 20 20 20 20 20 20 20 20 20 20 20 Average Carried 18 | 5 14 14 14 15 14 15 19 19 19 19 19 19 19 19 19 19 19 19 18 19 19 19 20 19 19 19 18 19 18 19 19 Final Capacity 20 | 8 15 15 15 15 15 15 20 20 20 20 20 20 20 20 20 20 20 20 20 20 20 20 20 20 20 20 20 20 20 20 20 Final Carried 20 | 8 15 15 15 15 15 15 20 20 20 19 18 20 20 20 20 20 20 19 19 20 20 20 20 20 18 20 20 20 18 20 20 Class Distribution -------------------- 51% | Botlord-Mutant 27% | Mutant 14% | Trapper-Mutant 3% | Scavenger-Mutant Dominant Class ---------------- Mutant | -10/Materials Mutant | -10/Mines Mutant | -9/Materials Mutant | -9/Mines Mutant | -9/Exiles Mutant | -8/Mines Mutant | -8/Materials Mutant | -8/Garrison Trapper-Mutant | -8/Materials Trapper-Mutant | -8/Garrison Scavenger-Mutant | -7/Factory Trapper-Mutant | -7/Garrison Trapper-Mutant | -6/Factory Botlord-Mutant | -6/Garrison Botlord-Mutant | -5/Factory Botlord-Mutant | -5/Garrison Botlord-Mutant | -5/Factory Botlord-Mutant | -5/Garrison Botlord-Mutant | -4/Factory Botlord-Mutant | -4/Extension Botlord-Mutant | -4/Cetus Botlord-Mutant | -4/Archives Botlord-Mutant | -4/Hub_04(d) Botlord-Mutant | -3/Research Botlord-Mutant | -3/Garrison Botlord-Mutant | -3/Research Botlord-Mutant | -3/Testing Botlord-Mutant | -3/Garrison Botlord-Mutant | -2/Research Botlord-Mutant | -2/Quarantine Botlord-Mutant | -1/Access Resources | -11 -10 -10 -9 -9 -9 -8 -8 -8 -8 -8 -7 -7 -6 -6 -5 -5 -5 -5 -4 -4 -4 -4 -4 -3 -3 -3 -3 -3 -2 -2 -1 ----------- Run | Jun Mat Min Mat Min Exi Min Mat Gar Mat Gar Fac Gar Fac Gar Fac Gar Fac Gar Fac Ext Cet Arc Hub Res Gar Res Tes Gar Res Qua Acc Matter Collected 13534 | 372 532 115 323 183 86 106 565 448 186 808 259 791 . 997 409 469 219 221 373 965 315 669 . 512 768 178 647 1290 130 241 357 Remotely . | . . . . . . . . . . . . . . . . . . . . . . . . . . . . . . . . Salvage Created 15000 | 155 627 96 355 217 . 146 830 807 322 921 700 816 . 901 988 692 380 267 461 567 119 386 . 756 541 155 332 995 370 86 1012 Parts 755 | 19 36 16 33 10 . 5 46 49 23 31 39 42 . 26 43 29 9 22 23 25 3 31 . 31 22 8 11 56 15 3 49 Haulers Intercepted 6 | . 2 . 1 . . . 2 . . 1 . . . . . . . . . . . . . . . . . . . . . Recyclers Shooed 7 | . 1 . . . . . . . . . . . . . 1 . . . . 1 . . . 1 . . 3 . . . . Parts Field Recycled . | . . . . . . . . . . . . . . . . . . . . . . . . . . . . . . . . Retrieved Matter . | . . . . . . . . . . . . . . . . . . . . . . . . . . . . . . . . Parts Self-Destructed . | . . . . . . . . . . . . . . . . . . . . . . . . . . . . . . . . Prevented . | . . . . . . . . . . . . . . . . . . . . . . . . . . . . . . . . Kills | -11 -10 -10 -9 -9 -9 -8 -8 -8 -8 -8 -7 -7 -6 -6 -5 -5 -5 -5 -4 -4 -4 -4 -4 -3 -3 -3 -3 -3 -2 -2 -1 ------- Run | Jun Mat Min Mat Min Exi Min Mat Gar Mat Gar Fac Gar Fac Gar Fac Gar Fac Gar Fac Ext Cet Arc Hub Res Gar Res Tes Gar Res Qua Acc Combat Hostiles Destroyed 252 | . 11 7 8 2 . 3 12 19 8 17 15 17 . 17 14 10 4 9 7 4 2 1 . 7 14 5 2 18 5 1 13 Melee 6 | . . . . . . . . . . . 3 . . . 2 . . . 1 . . . . . . . . . . . . Guns 146 | . 8 1 3 1 . 3 12 19 4 15 8 11 . 7 1 5 . 1 3 2 . . . 7 9 1 2 8 3 1 11 Cannons 33 | . . . . . . . . . . . . . . 6 5 4 4 4 1 1 2 1 . . 1 1 . 3 . . . AOE 49 | . 3 6 5 1 . . . . 4 2 3 6 . 2 3 . . 3 . . . . . . 3 3 . 5 . . . Classes Destroyed 19 | 2 5 1 1 . . 2 1 2 . . 1 . . 1 . . . 1 . . . . . . . . . 2 . . . Worker 13 | . . 2 . . . . 1 . 2 . 1 . . . 2 . . . 2 2 . . . . . . . . . . 1 Tunneler 8 | 5 . . . . . . . . 1 . . . . . 1 . . . . 1 . . . . . . . . . . . Hauler 6 | . 2 . 1 . . . 2 . . 1 . . . . . . . . . . . . . . . . . . . . . Recycler 14 | 1 1 . 1 3 . . 1 . 1 . . . . . 2 . 1 . . 1 . . . 1 . . 1 . . . . Mechanic 3 | . . . . . . . . . . . 3 . . . . . . . . . . . . . . . . . . . . Operator 12 | . 1 . . . . . . . 1 . . . . . . . . . . 1 . 9 . . . . . . . . . Drone 1 | . . . . . . . . . . . . . . . . . . . . . . . . . . . . 1 . . . Watcher 9 | . 2 . 3 . . . 1 . . . 1 . . . 1 . . . . . . . . 1 . . . . . . . Swarmer 68 | . 3 6 4 . . . . 9 6 2 4 6 . 5 1 3 . 4 . . . . . 3 . 4 . 7 . . 1 Cutter 7 | . . . . . . . . . . . . . . . . . . 2 . . . . . . 5 . . . . . . Grunt 75 | . 8 1 3 2 . 1 4 1 2 8 9 7 . 6 5 4 2 . 2 . . . . . 4 . . 4 1 1 . Brawler 5 | . . . 1 . . . 1 . . . . 1 . 1 . . 1 . . . . . . . . . . . . . . Duelist 11 | . . . . . . 1 . 3 . 2 1 . . . . . . . 1 . . . . . 1 . . 2 . . . Sentry 29 | . . . . . . . 4 2 . 3 . . . 1 . 3 1 . 2 4 . 1 . 2 . . 1 1 1 . 3 Specialist 4 | . . . . . . . . 2 . 1 . 1 . . . . . . . . . . . . . . . . . . . Hunter 17 | . . . . . . 1 3 1 . 1 . 1 . 3 2 . . . . . . . . . 2 1 . . . . 2 Programmer 33 | . . . . . . . . 1 . . 1 1 . 1 6 . . 3 2 . . . . 2 2 . 1 2 3 . 8 Q-Series 2 | . . . . . . . . . . . . . . . . . . . . . . . . . . . . 2 . . . Behemoth 1 | . . . . . . . . . . . . . . 1 . . . . . . . . . . . . . . . . . Cetus Guard 2 | . . . . . . . . . . . . . . . . . . . . . 2 . . . . . . . . . . Thug 1 | . . . . . . . . . . . . . . . . . . . . 1 . . . . . . . . . . . Savage 1 | . . . . . . . . . . . . . . . . . . . . . . . . 1 . . . . . . . Butcher 1 | . . . . . . . . . . . . . . . . . . . . . . . . 1 . . . . . . . Guerrilla 1 | . . . . . . . . . . . . . . . . . . . . . . 1 . . . . . . . . . Best Kill Streak 13 | 2 4 4 6 4 . 2 3 13 8 4 4 8 . 3 4 3 4 4 2 3 2 2 . 2 4 4 1 11 3 1 3 Combat Bots Only 13 | . 4 3 4 2 . 2 2 13 6 4 4 8 . 3 3 3 2 4 2 2 2 1 . 2 4 4 1 11 3 1 3 Max Kills in Single Turn 5 | 1 3 2 4 1 . 1 1 1 5 2 2 3 . 2 3 1 1 3 1 2 1 1 . 2 2 3 1 4 1 1 2 Gunslinging 1 | . . . . . . . . . . . . . . 1 . . . . . . . . . . . . . . . . . Exploded 4 | . 3 2 4 1 . . . . 4 2 2 3 . 1 2 . . 3 . . . . . . 2 3 . 4 . . . Melee 1 | . . . . . . . . . . . 1 . . . 1 . . . 1 . . . . . . . . . . . . Uniques/NPCs Destroyed . | . . . . . . . . . . . . . . . . . . . . . . . . . . . . . . . . Combat | -11 -10 -10 -9 -9 -9 -8 -8 -8 -8 -8 -7 -7 -6 -6 -5 -5 -5 -5 -4 -4 -4 -4 -4 -3 -3 -3 -3 -3 -2 -2 -1 -------- Run | Jun Mat Min Mat Min Exi Min Mat Gar Mat Gar Fac Gar Fac Gar Fac Gar Fac Gar Fac Ext Cet Arc Hub Res Gar Res Tes Gar Res Qua Acc Damage Taken 31707 | . 505 55 114 125 . 177 764 1044 319 1710 1334 706 . 2950 2175 1009 381 1436 2090 1386 270 92 107 1046 3261 443 1057 4719 1214 393 825 Core 3286 | . 111 . 6 30 . 14 79 134 17 232 88 86 . 299 256 45 35 107 269 169 26 . 23 83 372 21 111 296 85 79 213 Absorbed by Shields 2196 | . . . . . . . . 8 . . . . . . . 63 . 355 . 92 . 96 . 142 413 . . 726 . . 301 Redirected to Core 255 | . . . . . . . . . . . . . . . . . . . . . . . . . . . . . . 60 195 Redirected to Shielding 25 | . . . . . . . . . . . . . . . . . . . . 17 . 8 . . . . . . . . . Regen/Repaired (Parts) 1140 | . . . . . . . 45 . 273 . 200 . . . . . . . 440 . . . . . . . . . . . 182 Core Remaining (%) 65 | 100 . 55 . . . 87 . . . 16 . 75 . 64 . . . 55 . . . . 57 . . . . 32 . 88 86 Volleys Fired 1102 | 17 57 7 17 6 . 13 60 49 17 67 35 61 . 88 66 63 17 35 41 41 10 41 . 42 49 10 25 70 32 23 43 Largest 2 | 2 2 2 2 2 . 2 2 2 2 2 2 2 . 2 2 2 2 2 2 2 2 2 . 2 2 2 2 2 2 2 2 Hottest 240 | 40 46 46 46 46 . 51 89 89 89 114 161 61 . 108 126 97 85 126 98 138 114 114 . 240 115 122 73 207 188 188 188 Shots Fired 1904 | 34 114 9 29 11 . 26 116 118 32 132 63 118 . 151 73 75 34 60 49 75 17 73 . 77 78 18 43 122 49 30 78 Gun 1431 | 34 113 3 24 10 . 26 110 118 31 129 55 114 . 105 7 55 17 26 32 33 2 6 . 70 62 10 38 85 34 12 70 Cannon 368 | . . . . . . . 4 . . . 6 . . 38 59 15 17 33 4 41 12 67 . 6 1 6 . 25 13 15 6 Launcher 44 | . 1 6 5 1 . . 2 . 1 1 2 4 . 4 5 . . 1 . . . . . . 4 1 . 6 . . . Special 61 | . . . . . . . . . . 2 . . . 4 2 5 . . 13 1 3 . . 1 11 1 5 6 2 3 2 Kinetic 1212 | 34 113 3 24 10 . 26 71 29 16 105 26 114 . 124 7 45 34 36 31 60 14 67 . 73 47 10 38 55 . . . Thermal 549 | . . . . . . . 43 89 15 24 35 . . 18 59 12 . 23 11 3 . 6 . 3 16 . . 42 47 27 76 Explosive 44 | . 1 6 5 1 . . 2 . 1 1 2 4 . 4 5 . . 1 . . . . . . 4 1 . 6 . . . Electromagnetic 49 | . . . . . . . . . . . . . . 1 . 13 . . 5 11 . . . . . 6 . 13 . . . Robot Hit Streak 44 | 4 7 2 7 5 . 7 11 22 17 29 8 26 . 25 10 16 8 12 6 7 2 5 . 9 11 7 12 11 25 12 44 Robot Miss Streak 9 | 4 5 1 1 2 . 2 5 2 3 4 6 2 . 9 5 3 5 5 3 3 4 8 . 3 3 2 2 2 1 2 1 Penetration Max 2 | . . . . . . . 1 1 1 1 1 1 . . . . . . . 2 1 . . 1 1 . . 1 . . . Secondary Targets 19 | . 3 . 2 . . 1 . . . 2 1 . . 2 . . . . . . . . . 1 1 . 1 1 2 . 2 Max Gunslinging Chain 1 | . 1 . 1 . . 1 . . . 1 1 . . 1 . . . . . . . . . 1 1 . 1 1 1 . 1 Autonomous 47 | . . . . . . . . 47 . . . . . . . . . . . . . . . . . . . . . . . Shots Hit Robots 1367 | 13 73 2 17 5 4 18 73 105 25 102 51 88 . 108 52 58 23 35 39 91 8 27 . 47 51 11 32 99 32 12 66 Core Hits 614 | 7 26 11 20 5 . 8 29 30 21 34 30 48 . 59 25 30 12 12 15 22 3 22 . 22 25 9 10 39 9 3 28 Critical Kills 41 | . . . . . . . 1 1 . 1 . 1 . 1 5 . 3 1 . 7 2 10 . 5 1 1 . 1 . . . Critical Parts Destroyed 38 | . . . . . . . . . . 1 . 3 . 1 . 1 3 3 3 6 3 6 . 4 1 2 . 1 . . . Critical Strikes 117 | . . . . . . . 2 4 1 5 2 4 . 3 5 1 7 4 4 20 6 16 . 10 2 3 . 3 6 1 8 Burn 24 | . . . . . . . 1 3 1 3 1 . . . . . . . . . . . . . . . . . 6 1 8 Meltdown 8 | . . . . . . . . . . . . . . 1 5 . . 1 . . . . . . . . . 1 . . . Destroy 79 | . . . . . . . 1 1 . 2 . 4 . 1 . . 7 3 1 20 6 16 . 10 2 3 . 2 . . . Blast 1 | . . . . . . . . . . . . . . 1 . . . . . . . . . . . . . . . . . Smash 3 | . . . . . . . . . . . . . . . . 1 . . 2 . . . . . . . . . . . . Sever 2 | . . . . . . . . . . . 1 . . . . . . . 1 . . . . . . . . . . . . Melee Attacks 126 | . . . . . 4 . . 14 . . 17 . . 1 13 11 . . 11 42 . . . 2 . . . 11 . . . Impact 36 | . . . . . . . . . . . . . . 1 13 11 . . 11 . . . . . . . . . . . . Slashing 17 | . . . . . . . . . . . 17 . . . . . . . . . . . . . . . . . . . . Piercing 6 | . . . . . . . . . . . . . . . . . . . . 4 . . . 2 . . . . . . . Sneak Attacks 72 | . . . . . 4 . . 14 . . 5 . . . . . . . . 38 . . . . . . . 11 . . . Combat Hostiles . | . . . . . . . . . . . . . . . . . . . . . . . . . . . . . . . . Follow-up Attacks . | . . . . . . . . . . . . . . . . . . . . . . . . . . . . . . . . Damage Inflicted 38034 | 172 1140 426 615 159 . 276 1413 2183 914 2171 2234 2233 . 2700 2396 1172 454 1424 1045 1816 215 760 52 1492 2046 542 749 3848 963 291 2133 Guns 23290 | 172 995 28 242 66 . 276 1316 2170 537 2054 970 1440 . 1536 68 819 218 373 557 674 24 67 . 1481 1144 116 742 1829 963 282 2131 Cannons 6090 | . . . . . . . 86 . . . 50 . . 700 1372 270 236 781 80 888 190 693 . 11 17 82 . 634 . . . Explosions 6877 | . 141 391 373 87 . . 5 . 377 117 599 793 . 428 567 . . 270 . 143 . . . . 883 318 . 1385 . . . Melee 1516 | . . . . . . . . . . . 614 . . 36 389 83 . . 294 100 . . . . . . . . . . . Ramming 158 | . 4 7 . 6 . . 6 13 . . 1 . . . . . . . 11 11 1 . 52 . 2 26 7 . . 9 2 Kinetic 17636 | 172 995 28 242 66 . 276 882 407 289 1668 464 1440 . 1834 68 649 454 492 557 1261 214 693 . 1492 815 152 742 1284 . . . Thermal 11143 | . . . . . . . 520 1763 248 386 556 . . 369 1372 170 . 662 103 214 . 67 . . 346 . . 991 963 282 2131 Explosive 6708 | . 141 391 373 87 . . 5 . 351 117 599 793 . 428 567 . . 270 . . . . . . 883 318 . 1385 . . . Electromagnetic 873 | . . . . . . . . . 26 . . . . 33 . 270 . . 80 230 . . . . . 46 . 188 . . . Impact 802 | . . . . . . . . . . . . . . 36 389 83 . . 294 . . . . . . . . . . . . Slashing 614 | . . . . . . . . . . . 614 . . . . . . . . . . . . . . . . . . . . Piercing 100 | . . . . . . . . . . . . . . . . . . . . 100 . . . . . . . . . . . Highest Corruption 24 | . 6 11 . . . . 4 5 5 5 3 . . 2 3 3 . 12 24 24 20 20 1 1 5 5 5 11 6 10 . Average Corruption 6 | . 5 7 . . . . 2 4 5 5 1 . . 1 2 2 . 9 17 20 20 12 1 1 4 3 4 5 5 8 . Corruption Purged 51 | . . . . . . . . . . . 3 . . . . 3 . . . 7 . 20 . . 1 5 5 7 . . . Corruption Blocked 34 | . . . . . . . . . . . . . . . 3 . . . . . . . . 1 . . 15 15 . . . Effects 366 | . 9 35 . . . . 7 24 11 35 7 . . 9 6 18 . 14 29 61 12 15 . 1 3 8 7 29 8 18 . Message Errors 86 | . 1 7 . . . . 1 8 2 15 1 . . 1 . 4 . 3 7 15 3 2 . 1 . 2 1 8 2 2 . Matter Fused 91 | . 1 9 . . . . . 9 4 10 2 . . 2 5 3 . 5 3 10 4 5 . . 2 4 3 6 . 4 . Heat Flow Errors 48 | . 3 7 . . . . 1 3 2 2 1 . . 1 . 5 . 4 3 5 1 1 . . 1 . . 5 . 3 . Energy Discharges 50 | . 1 4 . . . . 1 2 . 4 1 . . 2 . 1 . 2 6 12 4 . . . . 1 . 3 3 3 . Parts Rejected 5 | . 1 . . . . . . . 1 . . . . 1 . 1 . . 1 . . . . . . . . . . . . Parts Fused 1 | . . . . . . . . . . . . . . . . . . . . . . . . . . . . . . 1 . Data Loss (minor) 44 | . 1 4 . . . . 2 1 1 2 . . . . . 3 . . 6 11 . 1 . . . . 2 3 3 4 . Data Loss (major) 12 | . . 1 . . . . 1 . . 1 2 . . . 1 1 . . . 3 . 1 . . . 1 . . . . . Misfires 12 | . 1 1 . . . . . . . . . . . 2 . . . . 1 3 . 1 . . . . . 2 . 1 . Alerts 7 | . . 2 . . . . . . . 1 . . . . . . . . 1 1 . . . . . . 1 1 . . . Misdirections 1 | . . . . . . . . . . . . . . . . . . . 1 . . . . . . . . . . . . Weapon Failures 9 | . . . . . . . 1 1 1 . . . . . . . . . . 1 . 4 . . . . . 1 . . . Overload Shots 1 | . . . . . . . . . . . . . . . . . . . . . . . . 1 . . . . . . . Overflow Damage 910 | . 39 23 . . . . . . . . 206 85 . 72 92 27 . 115 96 37 . 19 . . 67 2 . 30 . . . Projectiles 108 | . . . . . . . . . . . . . . 17 37 3 . 23 . 7 . 19 . . . . . 2 . . . Explosions 465 | . 39 23 . . . . . . . . 69 85 . 29 1 . . 92 . 30 . . . . 67 2 . 28 . . . Melee 337 | . . . . . . . . . . . 137 . . 26 54 24 . . 96 . . . . . . . . . . . . Knockbacks 32 | . 1 . . . . . . . . . . . . 2 4 . 2 3 2 2 2 10 . 1 . 3 . . . . . Impact 8 | . 1 . . . . . . . . . . . . . 4 . . . 2 . . . . . . 1 . . . . . Kinetic 22 | . . . . . . . . . . . . . . 2 . . 2 3 . 1 2 9 . 1 . 2 . . . . . Secondary 2 | . . . . . . . . . . . . . . . . . . . . 1 . 1 . . . . . . . . . Self-Inflicted Damage 776 | . . . . . . . . . 100 41 200 90 . . . . . 12 . . . . . . 307 . . 26 . . . Shots 15 | . . . . . . . . . 3 1 2 2 . . . . . 1 . . . . . . 4 . . 2 . . . Rammed 11 | . 1 2 . . . . 1 3 . . 1 . . . . . . . 3 . . . . . . . . . . . . Targets Rammed 26 | . 1 2 . 1 . . 1 3 . . 1 . . . . . . . 3 2 1 . 4 . 1 2 2 . . 1 1 Kicked 14 | . . . . . . . . . . . . . . . . . . . . 2 1 . 4 . 1 2 2 . . 1 1 Crushed 1 | . . . . 1 . . . . . . . . . . . . . . . . . . . . . . . . . . . Highest Temperature 396 | . 209 283 14 8 . 27 228 103 123 265 244 3 . 195 17 248 2 396 185 235 115 108 . 90 196 . . 324 . 127 . Average Temperature 91 | . 34 129 9 7 . 14 72 39 45 43 94 3 . 69 6 98 2 182 85 69 65 52 . 50 107 . . 102 . 69 . Received Heat Transfer 4540 | . 306 . 57 18 . 81 261 234 63 345 312 180 . 642 177 153 108 . 270 292 9 12 9 72 130 9 99 551 81 27 42 Effects 5 | . . . . . . . . . . . . . . . . 2 . 2 . . . . . . . . . 1 . . . Shutdowns 1 | . . . . . . . . . . . . . . . . . . 1 . . . . . . . . . . . . . Energy Bleed 1 | . . . . . . . . . . . . . . . . . . . . . . . . . . . . 1 . . . Interference 2 | . . . . . . . . . . . . . . . . 2 . . . . . . . . . . . . . . . Damage (minor) 1 | . . . . . . . . . . . . . . . . . . 1 . . . . . . . . . . . . . Siege Activations . | . . . . . . . . . . . . . . . . . . . . . . . . . . . . . . . . Robots Corrupted 3 | . . . . . . . . . . . . . . . . 1 . . . 1 . . . . . . . 1 . . . Combat Hostiles 3 | . . . . . . . . . . . . . . . . 1 . . . 1 . . . . . . . 1 . . . Parts Fried 11 | . . . . . . . . . . . 2 . . . . 1 . . 4 1 . . . . . . . 3 . . . Impact Corruptions 6 | . . . . . . . . . . . . . . 1 2 1 . . 2 . . . . . . . . . . . . Robots Melted 13 | . . . . . . . . . . . . . . 1 5 . . 1 . . . . . . 1 . . 1 2 . 2 Combat Hostiles 11 | . . . . . . . . . . . . . . 1 3 . . 1 . . . . . . 1 . . 1 2 . 2 Parts Melted 67 | . . . . . . . 1 12 2 . . . . 4 11 1 . 2 . . 1 . . . 6 . . 1 10 . 16 Heat Transferred 16638 | . . . . . . . 1036 2698 518 814 951 . . 700 1950 294 . 621 222 211 . 111 . . 444 . . 1036 1554 444 3034 Parts Sabotaged 1 | . . . . . . . . . . . . . . . 1 . . . . . . . . . . . . . . . . Parts Stolen . | . . . . . . . . . . . . . . . . . . . . . . . . . . . . . . . . Parts Stripped . | . . . . . . . . . . . . . . . . . . . . . . . . . . . . . . . . Power Chain Reactions 1 | . . . . . . . . . 1 . . . . . . . . . . . . . . . . . . . . . . Missiles Intercepted . | . . . . . . . . . . . . . . . . . . . . . . . . . . . . . . . . Alert | -11 -10 -10 -9 -9 -9 -8 -8 -8 -8 -8 -7 -7 -6 -6 -5 -5 -5 -5 -4 -4 -4 -4 -4 -3 -3 -3 -3 -3 -2 -2 -1 ------- Run | Jun Mat Min Mat Min Exi Min Mat Gar Mat Gar Fac Gar Fac Gar Fac Gar Fac Gar Fac Ext Cet Arc Hub Res Gar Res Tes Gar Res Qua Acc Peak Influence 1269 | 30 256 202 288 118 . 174 260 739 594 822 614 1076 580 1213 1049 1269 760 738 440 636 708 547 225 218 499 419 194 652 380 314 208 Initial 675 | . 19 85 . 53 . . . 128 360 278 431 368 564 406 636 675 665 532 371 93 356 283 128 107 87 280 157 37 312 168 164 Average 384 | 16 78 104 96 53 . 75 69 482 444 469 533 752 578 808 785 982 705 622 254 408 574 441 147 110 329 303 94 404 301 239 96 Maximum Alert Level 4 | . 1 1 1 . . . 1 3 2 3 2 3 2 4 3 4 3 3 2 2 3 2 1 1 2 2 . 2 1 1 1 Low Security (%) 35 | 100 86 78 86 100 . 100 94 9 . . . . . . . . . . 32 18 . . 85 98 11 . 100 17 4 13 94 Level 1 20 | . 13 21 13 . . . 5 23 43 40 . 18 . 1 . . . . 65 31 12 48 14 1 63 91 . 3 95 86 5 Level 2 27 | . . . . . . . . 63 56 49 99 27 100 40 23 2 38 68 2 50 51 51 . . 25 8 . 78 . . . Level 3 13 | . . . . . . . . 3 . 9 . 54 . 34 76 77 61 31 . . 35 . . . . . . . . . . Level 4 2 | . . . . . . . . . . . . . . 23 . 20 . . . . . . . . . . . . . . . Level 5 . | . . . . . . . . . . . . . . . . . . . . . . . . . . . . . . . . High Security . | . . . . . . . . . . . . . . . . . . . . . . . . . . . . . . . . Max Security . | . . . . . . . . . . . . . . . . . . . . . . . . . . . . . . . . Squads Dispatched 43 | . 2 . 4 . . . 2 . . . 3 . . . 7 . 1 . 2 . . . 1 2 . 1 8 . 4 3 3 Investigation 9 | . 2 . 2 . . . 1 . . . . . . . . . . . . . . . 1 . . . 1 . . 2 . Extermination 11 | . . . . . . . . . . . 1 . . . 3 . . . 1 . . . . 2 . . 1 . 1 . 2 Reinforcement 16 | . . . 2 . . . 1 . . . 2 . . . 1 . . . 1 . . . . . . 1 3 . 3 1 1 Assault 4 | . . . . . . . . . . . . . . . 3 . . . . . . . . . . . 1 . . . . Garrison 3 | . . . . . . . . . . . . . . . . . 1 . . . . . . . . . 2 . . . . Intercept . | . . . . . . . . . . . . . . . . . . . . . . . . . . . . . . . . Searches Triggered . | . . . . . . . . . . . . . . . . . . . . . . . . . . . . . . . . Construction Impeded 1 | . . . . . . . . . . . . . . . . . . . . . . . . . . . . . 1 . . Haulers Reinforced 1 | . . . . . . . . . . . . . . . . . . . . . . . . . . . 1 . . . . Active Scanning Responses . | . . . . . . . . . . . . . . . . . . . . . . . . . . . . . . . . Cargo Convoy Interrupts 1 | . . . . . . . . . . . 1 . . . . . . . . . . . . . . . . . . . . Stealth | -11 -10 -10 -9 -9 -9 -8 -8 -8 -8 -8 -7 -7 -6 -6 -5 -5 -5 -5 -4 -4 -4 -4 -4 -3 -3 -3 -3 -3 -2 -2 -1 --------- Run | Jun Mat Min Mat Min Exi Min Mat Gar Mat Gar Fac Gar Fac Gar Fac Gar Fac Gar Fac Ext Cet Arc Hub Res Gar Res Tes Gar Res Qua Acc Distress Signals 28 | . 1 . 3 . . . 3 . 2 1 . . . . 4 . . . 1 3 2 . 1 . . 1 3 . . 3 . Communications Jammed 186 | . . . . . . . . . . . . . . . 30 . . . . 3 23 . 8 29 . 35 . 1 18 29 10 Distress Signals 185 | . . . . . . . . . . . . . . . 29 . . . . 3 23 . 8 29 . 35 . 1 18 29 10 Times Spotted 533 | . 21 5 21 3 . 6 28 23 16 24 26 22 . 26 40 21 5 13 14 27 14 15 11 16 27 10 13 35 16 15 20 Peak Tracking Total 10 | . 4 3 7 2 . 3 6 5 7 6 4 5 . 5 7 5 3 5 4 5 5 1 8 3 9 4 6 10 4 4 3 Tactical Retreats 28 | . . . 1 . . . 4 . . . 1 4 . 2 . . . 5 . 1 . . . 1 4 . . . 2 2 1 Traps | -11 -10 -10 -9 -9 -9 -8 -8 -8 -8 -8 -7 -7 -6 -6 -5 -5 -5 -5 -4 -4 -4 -4 -4 -3 -3 -3 -3 -3 -2 -2 -1 ------- Run | Jun Mat Min Mat Min Exi Min Mat Gar Mat Gar Fac Gar Fac Gar Fac Gar Fac Gar Fac Ext Cet Arc Hub Res Gar Res Tes Gar Res Qua Acc Traps Triggered 28 | . 1 . . . . . 3 1 1 1 3 5 . 3 . 2 1 1 . . . . . 1 2 . 2 1 . . . Indirectly . | . . . . . . . . . . . . . . . . . . . . . . . . . . . . . . . . Trap Hack Attempts 1 | . . . . . . . . . . . . . . . . . . . . 1 . . . . . . . . . . . Triggered . | . . . . . . . . . . . . . . . . . . . . . . . . . . . . . . . . Disarmed . | . . . . . . . . . . . . . . . . . . . . . . . . . . . . . . . . Reprogrammed . | . . . . . . . . . . . . . . . . . . . . . . . . . . . . . . . . Reused 15 | . . . . . . . 1 3 . . . . . . 2 . . . 2 . . . . 3 2 . . . . 1 1 Traps Reconfigurated 87 | . . . . . . . 5 11 3 . 5 4 . . 16 10 . . 2 1 . . . 17 . 4 . . . . 9 Traps Extracted 6 | . . . . 4 . . . . . . . . . 1 . . . . . . . . . . . . . . . 1 . Installed 8 | . . 1 . . . . . . . . . . . 1 . . . . 2 . . . . . 2 . . . . 2 . Triggered 17 | . . . . . . . 1 3 . . 2 . . . 2 . . . 2 . . . . 3 2 . . . . 1 1 Most Traps Carried 12 | . . 1 1 5 5 4 4 8 8 8 8 12 12 12 12 12 12 12 12 10 10 10 8 8 8 6 4 4 4 4 3 Machines | -11 -10 -10 -9 -9 -9 -8 -8 -8 -8 -8 -7 -7 -6 -6 -5 -5 -5 -5 -4 -4 -4 -4 -4 -3 -3 -3 -3 -3 -2 -2 -1 ---------- Run | Jun Mat Min Mat Min Exi Min Mat Gar Mat Gar Fac Gar Fac Gar Fac Gar Fac Gar Fac Ext Cet Arc Hub Res Gar Res Tes Gar Res Qua Acc Machines Disabled 59 | . . . 1 1 . . 3 4 2 . 2 6 . 5 5 2 2 1 . 5 . 4 . . 4 1 1 4 . 6 . Max in Single Turn 2 | . . . 1 . . . 1 1 1 . 2 1 . 1 2 1 1 1 . 1 . 1 . . 1 1 1 1 . 1 . Garrison Access 3 | . . . . . . . . . . . . . . . 1 . . . . . . . . . . . . . . . 2 Garrison Relay 12 | . . . . . . . . 1 . . . 1 . 4 . 1 . . . . . . . . 3 . . 2 . . . Network Hub 1 | . . . . . . . . . . . . . . . . . . . . . . . 1 . . . . . . . . Energy Cycler 2 | . . . . . . . . . . . . . . . . . . . . 2 . . . . . . . . . . . Machines Repaired 1 | . . . . . . . . . . . . . . . . . . . . . . . 1 . . . . . . . . Machines Sabotaged . | . . . . . . . . . . . . . . . . . . . . . . . . . . . . . . . . Overloaded Fab Kills . | . . . . . . . . . . . . . . . . . . . . . . . . . . . . . . . . Hacking | -11 -10 -10 -9 -9 -9 -8 -8 -8 -8 -8 -7 -7 -6 -6 -5 -5 -5 -5 -4 -4 -4 -4 -4 -3 -3 -3 -3 -3 -2 -2 -1 --------- Run | Jun Mat Min Mat Min Exi Min Mat Gar Mat Gar Fac Gar Fac Gar Fac Gar Fac Gar Fac Ext Cet Arc Hub Res Gar Res Tes Gar Res Qua Acc Machines Accessed 102 | . 8 2 6 . 2 . 9 2 4 3 7 2 2 . 4 1 1 2 2 2 . . 1 5 1 6 8 3 4 8 7 Terminals 64 | . 6 1 4 . . . 5 2 2 3 3 2 . . 1 1 . 2 1 2 . . 1 2 1 4 6 3 3 6 3 Fabricators 8 | . . . . . . . . . . . 1 . 1 . 1 . . . . . . . . 2 . 2 . . 1 . . Repair Stations 8 | . 1 . . . . . 1 . 1 . 1 . . . . . . . 1 . . . . . . . 1 . . 1 1 Recycling Units 5 | . 1 . 1 . . . 1 . . . . . . . 1 . . . . . . . . . . . . . . . 1 Scanalyzers 3 | . . . 1 . . . 1 . . . 1 . . . . . . . . . . . . . . . . . . . . Garrison Access 11 | . . . . . . . 1 . 1 . 1 . 1 . 1 . 1 . . . . . . 1 . . 1 . . 1 2 Total Hacks 235 | . 16 4 22 . 2 . 20 4 9 6 13 3 4 . 7 3 1 5 7 5 . . 1 11 2 17 18 6 11 22 16 Successful 104 | . 7 2 7 . 2 . 12 2 8 1 6 1 3 . 3 1 1 . 4 1 . . 1 7 . 4 6 2 6 9 8 Failed 131 | . 9 2 15 . . . 8 2 1 5 7 2 1 . 4 2 . 5 3 4 . . . 4 2 13 12 4 5 13 8 Catastrophic 30 | . 3 . 3 . . . 1 1 . 2 1 . . . . . . 1 1 2 . . . 1 . 3 7 1 1 2 . Database Lockouts . | . . . . . . . . . . . . . . . . . . . . . . . . . . . . . . . . Manual 42 | . 1 2 3 . 1 . 6 1 1 . 4 . 1 . 2 1 . . 3 . . . 1 2 . 2 . . 4 3 4 Terminals 154 | . 11 3 14 . . . 12 4 4 6 5 3 . . 2 3 . 5 3 5 . . 1 7 2 11 15 6 8 18 6 Fabricators 18 | . . . . . . . . . . . 2 . 2 . 2 . . . . . . . . 3 . 6 . . 3 . . Repair Stations 26 | . 4 . . . . . 3 . 4 . 3 . . . . . . . 4 . . . . . . . 2 . . 2 4 Recycling Units 13 | . 1 . 4 . . . 2 . . . . . . . 2 . . . . . . . . . . . . . . . 4 Scanalyzers 8 | . . . 4 . . . 2 . . . 2 . . . . . . . . . . . . . . . . . . . . Garrison Access 13 | . . . . . . . 1 . 1 . 1 . 2 . 1 . 1 . . . . . . 1 . . 1 . . 2 2 Terminal Hacks 50 | . 5 2 2 . 2 . 3 2 2 1 1 1 . . . 1 . . 1 1 . . . 2 . 3 4 2 4 7 4 Record 1 | . . . . . 1 . . . . . . . . . . . . . . . . . . . . . . . . . . Robot Schematic 1 | . . 1 . . . . . . . . . . . . . . . . . . . . . . . . . . . . . Robot Analysis 2 | . 1 . . . . . . . . . . . . . . . . . . . . . . . . . . . . 1 . Prototype ID Bank 1 | . 1 . . . . . . . . . . . . . . . . . . . . . . . . . . . . . . Open Door 6 | . . 1 . . . . . . . 1 . . . . . . . . . . . . . . . . . 1 1 1 1 Open DSF 2 | . . . . . . . . . . . . . . . . . . . . . . . . . . 1 . . 1 . . Level Access Points 2 | . . . . . . . . . . . . . . . . . . . . . . . . . . . . . . 1 1 Branch Access Points 3 | . 1 . . . . . . . . . . . . . . . . . . . . . . . . 1 . . 1 . . Emergency Access Points 4 | . . . . . . . . 1 . . . 1 . . . 1 . . . . . . . . . . . 1 . . . Terminal Index 4 | . . . . . . . . . . . 1 . . . . . . . . . . . . . . . . . 1 1 1 Repair Station Index 1 | . . . . . . . . . . . . . . . . . . . . . . . . . . . . . . 1 . Garrison Index 1 | . . . . . . . . . . . . . . . . . . . . . . . . 1 . . . . . . . Locate Traps 3 | . 1 . . . . . . . . . . . . . . . . . . 1 . . . . . . . . . . 1 Maintenance Status 2 | . . . . . . . . . . . . . . . . . . . . . . . . 1 . . 1 . . . . Patrol Status 1 | . . . . . . . . . . . . . . . . . . . 1 . . . . . . . . . . . . Reinforcement Status 1 | . . . . . . . 1 . . . . . . . . . . . . . . . . . . . . . . . . Hauler Manifests 1 | . . . 1 . . . . . . . . . . . . . . . . . . . . . . . . . . . . Registered Components 2 | . . . . . . . 1 . . . . . . . . . . . . . . . . . . . . . . 1 . Registered Prototypes 1 | . . . . . . . . . . . . . . . . . . . . . . . . . . . . . . 1 . Zone Layout 7 | . 1 . 1 . . . 1 . 2 . . . . . . . . . . . . . . . . 1 1 . . . . Garrison Registry 1 | . . . . . . . . 1 . . . . . . . . . . . . . . . . . . . . . . . EX-Prototype ID Bank 1 | . . . . . 1 . . . . . . . . . . . . . . . . . . . . . . . . . . Protovariant Controls 2 | . . . . . . . . . . . . . . . . . . . . . . . . . . . 2 . . . . Fabricator Hacks 5 | . . . . . . . . . . . . . 1 . . . . . . . . . . 3 . . . . 1 . . Network Status 2 | . . . . . . . . . . . . . . . . . . . . . . . . 1 . . . . 1 . . Load Schematic 1 | . . . . . . . . . . . . . . . . . . . . . . . . 1 . . . . . . . Build 2 | . . . . . . . . . . . . . 1 . . . . . . . . . . 1 . . . . . . . Repair Station Hacks 14 | . 1 . . . . . 2 . 4 . 2 . . . . . . . 2 . . . . . . . 1 . . . 2 Scan Component 8 | . 1 . . . . . 1 . 2 . 1 . . . . . . . 1 . . . . . . . 1 . . . 1 Repair 6 | . . . . . . . 1 . 2 . 1 . . . . . . . 1 . . . . . . . . . . . 1 Recycling Unit Hacks 1 | . . . . . . . 1 . . . . . . . . . . . . . . . . . . . . . . . . Report Inventory 1 | . . . . . . . 1 . . . . . . . . . . . . . . . . . . . . . . . . Scanalyzer 7 | . . . 4 . . . 2 . . . 1 . . . . . . . . . . . . . . . . . . . . Insert Component 4 | . . . 2 . . . 1 . . . 1 . . . . . . . . . . . . . . . . . . . . Analyze 3 | . . . 2 . . . 1 . . . . . . . . . . . . . . . . . . . . . . . . Garrison Access Hacks 11 | . . . . . . . 1 . 1 . 1 . 2 . 1 . 1 . . . . . . 1 . . 1 . . . 2 Unlock Access 8 | . . . . . . . 1 . 1 . 1 . 1 . 1 . 1 . . . . . . 1 . . 1 . . . . Seal Access 2 | . . . . . . . . . . . . . . . . . . . . . . . . . . . . . . . 2 Coupler Status 1 | . . . . . . . . . . . . . 1 . . . . . . . . . . . . . . . . . . Unauthorized Hacks 15 | . 1 . 1 . . . 2 . 1 . 1 . . . 2 . . . 1 . . . 1 1 . 1 . . 1 2 . Terminals 9 | . . . . . . . 1 . 1 . 1 . . . 1 . . . 1 . . . 1 1 . 1 . . . 1 . Botnet 7 | . . . . . . . 1 . 1 . . . . . 1 . . . 1 . . . . 1 . 1 . . . 1 . Operators 1 | . . . . . . . . . . . 1 . . . . . . . . . . . . . . . . . . . . Sabotage 1 | . . . . . . . . . . . . . . . . . . . . . . . 1 . . . . . . . . Fabricators 2 | . . . . . . . . . . . . . . . 1 . . . . . . . . . . . . . 1 . . Report 1 | . . . . . . . . . . . . . . . 1 . . . . . . . . . . . . . . . . Haulers 1 | . . . . . . . . . . . . . . . . . . . . . . . . . . . . . 1 . . Repair Stations . | . . . . . . . . . . . . . . . . . . . . . . . . . . . . . . . . Recycling Units 3 | . 1 . 1 . . . 1 . . . . . . . . . . . . . . . . . . . . . . . . Tunnel 3 | . 1 . 1 . . . 1 . . . . . . . . . . . . . . . . . . . . . . . . Scanalyzers . | . . . . . . . . . . . . . . . . . . . . . . . . . . . . . . . . Garrison Access 1 | . . . . . . . . . . . . . . . . . . . . . . . . . . . . . . 1 . Reprogram 1 | . . . . . . . . . . . . . . . . . . . . . . . . . . . . . . 1 . Data Cores Recovered 2 | . 1 . . . . . . . 1 . . . . . . . . . . . . . . . . . . . . . . Used 1 | . . . . . . . . . 1 . . . . . . . . . . . . . . . . . . . . . . Hacking Detections 78 | . 7 1 5 . . . 6 1 3 3 6 2 1 . 3 1 . 2 2 2 . . . 3 1 6 7 3 2 6 5 Full Trace Events 6 | . 1 1 1 . . . . . . 1 . 1 . . . . . . . . . . . . . . . . . 1 . Feedback Events 2 | . 1 1 . . . . . . . . . . . . . . . . . . . . . . . . . . . . . Corruption 2 | . 1 1 . . . . . . . . . . . . . . . . . . . . . . . . . . . . . Feedback Blocked . | . . . . . . . . . . . . . . . . . . . . . . . . . . . . . . . . Robot Schematics Acquired 2 | . . 1 . . . . . . . . . . . . . . . . . . . . . . . . . 1 . . . Robots Built 4 | . . . . . . . . . . . . . 3 . . . . . . . . . . 1 . . . . . . . Authchips 1 | . . . . . . . . . . . . . . . . . . . . . . . . 1 . . . . . . . Time 148 | . . . . . . . . . . . . . 67 . . . . . . . . . . 81 . . . . . . . Total Robot Build Rating 13 | . . . . . . . . . . . . . 12 . . . . . . . . . . 1 . . . . . . . Part Schematics Acquired 5 | . . . 2 . . . 1 . . . . . . . . . . . . . . . . . . . . 2 . . . Parts Built . | . . . . . . . . . . . . . . . . . . . . . . . . . . . . . . . . Authchips . | . . . . . . . . . . . . . . . . . . . . . . . . . . . . . . . . Time . | . . . . . . . . . . . . . . . . . . . . . . . . . . . . . . . . Total Part Build Rating . | . . . . . . . . . . . . . . . . . . . . . . . . . . . . . . . . Parts Repaired 6 | . . . . . . . 1 . 2 . 1 . . . . . . . 1 . . . . . . . . . . . 1 Time 207 | . . . . . . . 38 . 82 . 38 . . . . . . . 13 . . . . . . . . . . . 36 Parts Recycled . | . . . . . . . . . . . . . . . . . . . . . . . . . . . . . . . . Recycled Matter . | . . . . . . . . . . . . . . . . . . . . . . . . . . . . . . . . Retrieved Matter . | . . . . . . . . . . . . . . . . . . . . . . . . . . . . . . . . Retrieved Components . | . . . . . . . . . . . . . . . . . . . . . . . . . . . . . . . . Parts Scanalyzed 4 | . . . 2 . . . 1 . . . 1 . . . . . . . . . . . . . . . . . . . . Part Schematics Acquired 3 | . . . 2 . . . 1 . . . . . . . . . . . . . . . . . . . . . . . . Parts Damaged . | . . . . . . . . . . . . . . . . . . . . . . . . . . . . . . . . Bothacking | -11 -10 -10 -9 -9 -9 -8 -8 -8 -8 -8 -7 -7 -6 -6 -5 -5 -5 -5 -4 -4 -4 -4 -4 -3 -3 -3 -3 -3 -2 -2 -1 ------------ Run | Jun Mat Min Mat Min Exi Min Mat Gar Mat Gar Fac Gar Fac Gar Fac Gar Fac Gar Fac Ext Cet Arc Hub Res Gar Res Tes Gar Res Qua Acc Used RIF Installer 11 | . . . . . . . . 2 . 1 . 1 . 2 . 2 . 1 . . . . . . 1 . . 1 . . . Hotswap 1 | . . . . . . . . . . . . 1 . . . . . . . . . . . . . . . . . . . Command Fork 1 | . . . . . . . . . . . . . . . . . . . . . . . . . . . . 1 . . . Threat Obfuscator 1 | . . . . . . . . . . . . . . . . . . . . . . . . . 1 . . . . . . Signal Jammer 1 | . . . . . . . . 1 . . . . . . . . . . . . . . . . . . . . . . . Zone Cloak 1 | . . . . . . . . . . 1 . . . . . . . . . . . . . . . . . . . . . Robot Detection 1 | . . . . . . . . . . . . . . . . . . 1 . . . . . . . . . . . . . Patrol Navigation 1 | . . . . . . . . . . . . . . 1 . . . . . . . . . . . . . . . . . Structural Interface 1 | . . . . . . . . . . . . . . . . 1 . . . . . . . . . . . . . . . Program Shield 1 | . . . . . . . . . . . . . . 1 . . . . . . . . . . . . . . . . . Autoassimilate 1 | . . . . . . . . . . . . . . . . 1 . . . . . . . . . . . . . . . Robots Hacked 49 | . . . . . 4 . . . . 2 . . . 2 2 3 . . 1 1 2 . 1 1 8 2 3 9 1 2 5 Non-combat 8 | . . . . . 3 . . . . . . . . . . . . . 1 . . . . 1 . . 1 . . 1 1 Combat 41 | . . . . . 1 . . . . 2 . . . 2 2 3 . . . 1 2 . 1 . 8 2 2 9 1 1 4 Autoassimilated 9 | . . . . . . . . . . . . . . . . . . . . . . . 1 . 2 1 . 1 . . 4 Robot Hacks Applied 45 | . . . . . 4 . . . . 2 . . . 3 2 3 . . 1 1 2 . . 1 7 1 5 8 1 2 2 parse_system 8 | . . . . . 4 . . . . . . . . 1 . . . . . . . . . . . . 1 2 . . . find_chute 1 | . . . . . . . . . . . . . . . . . . . 1 . . . . . . . . . . . . map_route 2 | . . . . . . . . . . . . . . . . . . . . . . . . 1 . . . . . . 1 mark_security 1 | . . . . . . . . . . . . . . . . . . . . . . . . . . . . . . . 1 locate_prototypes 1 | . . . . . . . . . . . . . . . . . . . . . . . . . . . 1 . . . . find_garrison 1 | . . . . . . . . . . . . . . . 1 . . . . . . . . . . . . . . . . spike_heat 1 | . . . . . . . . . . . . . . . . . . . . . 1 . . . . . . . . . . overload_power 1 | . . . . . . . . . . . . . . 1 . . . . . . . . . . . . . . . . . amplify_resonance 8 | . . . . . . . . . . 2 . . . . 1 1 . . . 1 1 . . . 2 . . . . . . overwrite_iff 8 | . . . . . . . . . . . . . . . . 1 . . . . . . . . 5 . . 2 . . . formatsys_low 3 | . . . . . . . . . . . . . . . . . . . . . . . . . . . 2 . . 1 . formatsys_high 10 | . . . . . . . . . . . . . . 1 . 1 . . . . . . . . . 1 1 4 1 1 . Relay Couplers Released 57 | . . . . . . . . 8 . . . 3 . 20 3 5 . . . . . . . . 9 . . 9 . . . Machine Destruction 49 | . . . . . . . . 4 . . . 3 . 16 3 5 . . . . . . . . 9 . . 9 . . . Programmers 8 | . . . . . . . . 4 . . . . . 4 . . . . . . . . . . . . . . . . . Attached 26 | . . . . . . . . . . 1 . . 1 4 . 2 1 2 1 . 1 . . . 5 1 3 4 . . . Fabnet Peak Effective % . | . . . . . . . . . . . . . . . . . . . . . . . . . . . . . . . . Robots Rewired 30 | . . . . . . . . 7 . . . . . 1 . . . . . 18 . . . . . . . 4 . . . Allies Hacked . | . . . . . . . . . . . . . . . . . . . . . . . . . . . . . . . . Hacks Repelled . | . . . . . . . . . . . . . . . . . . . . . . . . . . . . . . . . Allies | -11 -10 -10 -9 -9 -9 -8 -8 -8 -8 -8 -7 -7 -6 -6 -5 -5 -5 -5 -4 -4 -4 -4 -4 -3 -3 -3 -3 -3 -2 -2 -1 -------- Run | Jun Mat Min Mat Min Exi Min Mat Gar Mat Gar Fac Gar Fac Gar Fac Gar Fac Gar Fac Ext Cet Arc Hub Res Gar Res Tes Gar Res Qua Acc Total Allies 80 | . . 2 . 1 . . . 7 . 2 . . 3 2 . 6 . . . 22 . . 1 1 6 2 3 11 1 6 4 Largest Group 14 | . . 2 2 1 1 1 1 4 1 2 2 . 3 3 1 4 3 . . 14 14 5 4 3 2 2 3 10 1 5 3 Highest-Rated Group 590 | . . 42 42 31 31 31 28 30 5 40 40 . 60 148 148 234 171 . . 590 590 215 149 93 82 128 226 567 69 278 104 Highest-Rated Ally 159 | . . 31 31 31 31 31 28 10 5 20 20 . 20 148 148 80 73 . . 159 51 51 51 36 47 64 154 154 69 69 69 Total Orders 4 | . . . . . . . . . . . . . . . . . . . . . . 2 . . . . . . . . 2 STAY 1 | . . . . . . . . . . . . . . . . . . . . . . 1 . . . . . . . . . FOLLOW 1 | . . . . . . . . . . . . . . . . . . . . . . 1 . . . . . . . . . RETURN 2 | . . . . . . . . . . . . . . . . . . . . . . . . . . . . . . . 2 Ally Attacks 668 | . . 5 11 4 . 20 1 22 8 . 11 . . 67 76 49 4 . . 113 73 13 6 3 18 1 22 96 5 34 6 Total Damage 19836 | . . 44 126 65 . 271 21 205 40 . 328 . . 1976 1900 1702 195 . . 4039 2013 353 230 108 467 24 971 3082 340 1172 164 Kills 117 | . . 1 3 1 . 3 . 4 1 . 3 . . 9 18 11 . . . 19 13 3 2 . 1 . 6 11 . 7 1 Allies Corrupted 4 | . . . . . . . . . . . . . . . . . 1 . . . . . . . . . 1 1 . . 1 Allies Melted 2 | . . . . . . . . . . . . . . . . . . . . 1 . . . . 1 . . . . . . Intel | -11 -10 -10 -9 -9 -9 -8 -8 -8 -8 -8 -7 -7 -6 -6 -5 -5 -5 -5 -4 -4 -4 -4 -4 -3 -3 -3 -3 -3 -2 -2 -1 ------- Run | Jun Mat Min Mat Min Exi Min Mat Gar Mat Gar Fac Gar Fac Gar Fac Gar Fac Gar Fac Ext Cet Arc Hub Res Gar Res Tes Gar Res Qua Acc Robot Analysis Total 2 | . 1 . . . . . . . . . . . . . . . . . . . . . . . . . . . . 1 . Derelict Logs Recovered 3 | . . 1 . 2 . . . . . . . . . . . . . . . . . . . . . . . . . . . Drone Launches 13 | . . . . . . . . . . . . . . . . . . . . . . . . . . . . 4 . . 9 Drone Recoveries 5 | . . . . . . . . . . . . . . . . . . . . . . . . . . . . . . . 5 Exploration | -11 -10 -10 -9 -9 -9 -8 -8 -8 -8 -8 -7 -7 -6 -6 -5 -5 -5 -5 -4 -4 -4 -4 -4 -3 -3 -3 -3 -3 -2 -2 -1 ------------- Run | Jun Mat Min Mat Min Exi Min Mat Gar Mat Gar Fac Gar Fac Gar Fac Gar Fac Gar Fac Ext Cet Arc Hub Res Gar Res Tes Gar Res Qua Acc Turns Passed 29384 | 228 1365 1083 816 708 613 767 2004 1068 606 1321 1557 1084 238 1755 1638 1083 324 556 1183 1174 254 703 92 1119 1023 580 569 1482 687 592 1112 Spaces Moved 16170 | 133 684 649 453 419 373 452 897 534 299 610 770 563 167 829 634 708 233 385 511 721 151 430 61 690 576 361 356 933 438 408 742 Core 5 | 5 . . . . . . . . . . . . . . . . . . . . . . . . . . . . . . . Treads 6303 | . 546 649 453 419 373 452 897 534 299 610 758 . . . 257 . . . 56 . . . . . . . . . . . . Legs 8701 | 128 138 . . . . . . . . . 12 108 . 713 290 597 233 385 230 721 151 430 61 690 576 361 356 933 438 408 742 Wheels 1142 | . . . . . . . . . . . . 455 167 116 87 111 . . 206 . . . . . . . . . . . . Hover 19 | . . . . . . . . . . . . . . . . . . . 19 . . . . . . . . . . . . Flight . | . . . . . . . . . . . . . . . . . . . . . . . . . . . . . . . . Fastest Speed 50 | 50 120 160 160 160 160 155 155 160 150 150 160 130 130 120 120 114 97 102 120 120 120 120 120 117 117 118 118 107 107 111 118 Average Speed 142 | 117 161 160 160 160 160 158 159 160 157 156 171 144 130 155 217 118 103 107 176 120 120 120 120 119 119 118 120 120 109 111 118 Slowest Speed 400 | 120 320 160 160 160 160 160 160 160 160 233 245 190 130 260 330 190 114 400 400 120 120 190 120 120 190 120 190 260 111 118 120 Overloaded Moves . | . . . . . . . . . . . . . . . . . . . . . . . . . . . . . . . . Propulsion Burnouts . | . . . . . . . . . . . . . . . . . . . . . . . . . . . . . . . . Robots Hopped . | . . . . . . . . . . . . . . . . . . . . . . . . . . . . . . . . Cave-ins Triggered 2 | . . . . . . . . . . . . . . . . . . . 1 . . . . . . . . . . 1 . Exploration Rate (%) 48 | 6 84 96 50 80 66 82 68 63 28 66 28 61 4 65 17 83 7 50 7 86 56 84 4 20 66 11 52 81 16 48 27 Regions Visited 31 Branch Regions 10 Pre-discovered Areas 4 | . 1 . 1 . 1 . 1 . . . . . . . . . . . . . . . . . . . . . . . . Known Exits Taken 14 | . 1 . 1 . 1 . 1 . 1 . 1 . 1 . 1 . 1 . . . . . . 1 . 1 1 . 1 1 . Unknown Exits Taken 9 | 1 . 1 . 1 . 1 . . . . . . . . . . . . 1 1 1 1 1 . . . . . . . . Scrap Searched 4 | . . 1 . 1 . 2 . . . . . . . . . . . . . . . . . . . . . . . . . Spaces Dug 49 | . . 12 . . . . 1 . . . 1 . . . 2 . . . 4 . . . . 5 . . . . 10 9 5 Terrain Destroyed 480 | . 9 36 22 8 . . 21 . 5 2 48 56 . 62 26 1 4 8 7 22 6 25 . 9 14 3 5 52 13 10 6 Melee 7 | . . . . . . . . . . . 1 . . . . . . . 4 . . . . 2 . . . . . . . Projectile 133 | . . . . . . . 1 . . . 1 2 . 1 14 1 4 6 3 10 6 25 . 7 6 2 5 10 13 10 6 AOE 337 | . 9 36 22 8 . . 20 . 5 2 46 54 . 61 12 . . 2 . 11 . . . . 7 1 . 41 . . . Terrain Rammed . | . . . . . . . . . . . . . . . . . . . . . . . . . . . . . . . . Walls Destroyed . | . . . . . . . . . . . . . . . . . . . . . . . . . . . . . . . . Machines Disabled . | . . . . . . . . . . . . . . . . . . . . . . . . . . . . . . . . Actions | -11 -10 -10 -9 -9 -9 -8 -8 -8 -8 -8 -7 -7 -6 -6 -5 -5 -5 -5 -4 -4 -4 -4 -4 -3 -3 -3 -3 -3 -2 -2 -1 --------- Run | Jun Mat Min Mat Min Exi Min Mat Gar Mat Gar Fac Gar Fac Gar Fac Gar Fac Gar Fac Ext Cet Arc Hub Res Gar Res Tes Gar Res Qua Acc Total 20519 | 168 834 687 524 442 390 478 1353 673 399 848 915 713 188 1141 792 862 283 467 708 947 209 544 79 896 839 495 458 1182 594 516 895 Wait 1690 | . 31 9 4 10 2 10 322 22 43 142 49 24 13 120 30 39 20 29 72 46 23 34 15 100 151 86 10 37 99 38 60 Move 16136 | 132 683 648 452 418 372 451 897 533 298 608 769 561 166 827 633 706 232 384 510 720 150 429 61 690 574 360 356 931 437 407 741 Hop . | . . . . . . . . . . . . . . . . . . . . . . . . . . . . . . . . Pick Up 235 | 10 23 5 11 . 4 . 18 11 9 1 7 5 2 12 3 7 4 4 22 6 1 6 . 4 12 3 13 12 6 7 7 Fast Attach 269 | 7 5 1 5 . . . 5 4 8 8 8 9 1 18 18 9 . 4 20 18 7 13 . 13 12 9 16 36 2 9 4 Attach 119 | . . . 4 . . . 4 4 . . 8 2 2 9 4 6 1 6 9 3 2 3 . 4 11 4 9 11 5 3 5 Detach 45 | . . . 1 . . . . 1 1 . 4 4 1 2 3 2 . 1 5 2 2 2 . 2 1 3 1 6 . . 1 Swap 306 | . 15 8 10 7 3 2 24 17 10 12 11 6 1 13 9 8 4 . 6 26 4 . . 20 14 8 5 23 9 10 21 Drop 348 | 2 19 6 20 . 5 2 22 15 13 10 6 9 2 13 13 9 5 . 7 25 9 16 . 14 8 10 21 39 3 14 11 Fire 1102 | 17 57 7 17 6 . 13 60 49 17 67 35 61 . 88 66 63 17 35 41 41 10 41 . 42 49 10 25 70 32 23 43 Melee 126 | . . . . . 4 . . 14 . . 17 . . 1 13 11 . . 11 42 . . . 2 . . . 11 . . . Ram . | . . . . . . . . . . . . . . . . . . . . . . . . . . . . . . . . Kick 13 | . . . . . . . . . . . . . . . . . . . . 2 1 . 3 . 1 2 2 . . 1 1 Crush 12 | . 1 2 . 1 . . 1 3 . . 1 . . . . . . . 3 . . . . . . . . . . . . Escape Stasis 63 | . . . . . . . . . . . . 32 . 13 . 2 . 4 . . . . . 5 4 . . 3 . . . Rewire 46 | . . . . . . . . . . . . . . 24 . . . . . 15 . . . . . . . 3 1 2 1 Trap 9 | . . 1 . . . . . . . . . . . 1 . . . . 2 1 . . . . 2 . . . . 2 . Miscellaneous . | . . . . . . . . . . . . . . . . . . . . . . . . . . . . . . . . Route ------- -11/Junkyard -10/Materials (discovered 3 exits: *Mat x2 / *Min) -10/Mines -9/Materials (discovered 3 exits: *Mat x2 / *Min) -9/Mines (discovered 3 exits: *Mat / *Exi / [*Zio]) -9/Exiles (discovered 2 exits: *Min x2) -8/Mines -8/Materials (discovered 4 exits: *Fac x3 / Gar) -8/Garrison (discovered 4 exits: *Fac x3 / *Mat) -8/Materials (discovered 2 exits: *Fac / Gar) -8/Garrison (discovered 3 exits: *Fac x3) -7/Factory (discovered 3 exits: *Fac / *Low / Gar) -7/Garrison (discovered 2 exits: *Fac x2) -6/Factory -6/Garrison (discovered 2 exits: *Fac x2) -5/Factory -5/Garrison (discovered 3 exits: *Fac x3) -5/Factory (discovered 2 exits: *Fac / Gar) -5/Garrison -4/Factory (discovered 3 exits: *Res / [*Upp] / *Ext) -4/Extension (discovered 3 exits: *Res x2 / [*Cet]) -4/Cetus (discovered 2 exits: *Res / *Arc) -4/Archives (discovered 3 exits: *Res / *Hub x2) -4/Hub_04(d) -3/Research (discovered 2 exits: *Res / Gar) -3/Garrison (discovered 2 exits: *Res x2) -3/Research (discovered 2 exits: *Tes x2) -3/Testing -3/Garrison (discovered 3 exits: *Res x3) -2/Research (discovered 2 exits: *Qua x2) -2/Quarantine -1/Access To Epsilon Eridani History --------- Turn | Location | Event 12 | -11/Junkyard | Discovered new exit (range 15) 229 | -11/Junkyard | Entered Materials 252 | -10/Materials | Identified exit to Mines 303 | -10/Materials | Build established: Mutant 659 | -10/Materials | Discovered new exit (range 13) 1303 | -10/Materials | Discovered new exit (range 16) 1594 | -10/Materials | Entered Mines 1642 | -10/Mines | Found a hidden stash of uninstalled traps 1995 | -10/Mines | Received a Rocket Launcher from a helpful Derelict 2117 | -10/Mines | Discovered new exit (range 12) 2360 | -10/Mines | Met a Derelict who couldn't figure out how to use a Trap Extractor 2375 | -10/Mines | System corruption reached 10% 2677 | -10/Mines | Entered Materials 2677 | -9/Materials | Accompanied by 2 allies 2677 | -9/Materials | Evolved 2 slots: Propulsion x1, Utility x1 2678 | -9/Materials | Identified exit to Mines 2682 | -9/Materials | Led the pair of lost Derelicts to an unsafe place 3018 | -9/Materials | Discovered new exit (range 16) 3267 | -9/Materials | Discovered new exit (range 10) 3493 | -9/Materials | Entered Mines 3624 | -9/Mines | A Derelict revealed a hidden shortcut to a safe place 3803 | -9/Mines | Discovered new exit (range 13) 3873 | -9/Mines | Assembled infested the area 3878 | -9/Mines | Assisted by a Guerilla fighting off Assembled 4139 | -9/Mines | Met a Derelict testing a Signal Generator 4192 | -9/Mines | Deemed a non-threat by the Exiles lab entrance 4193 | -9/Mines | Discovered new exit (range 5) 4201 | -9/Mines | Entered Exiles 4201 | -9/Exiles | Accompanied by 1 ally 4202 | -9/Exiles | Identified exit to Mines 4269 | -9/Exiles | Met 8R-AWN 4305 | -9/Exiles | Met EX-HEX 4355 | -9/Exiles | Met EX-BIN 4404 | -9/Exiles | Met EX-DEC 4411 | -9/Exiles | Learned location of Zion (-7) 4533 | -9/Exiles | Aligned with FarCom system 4535 | -9/Exiles | Given EX-Vault access code 4573 | -9/Exiles | Opened EX-Vault 4591 | -9/Exiles | Found Superbattery 4601 | -9/Exiles | Found Trap Reconfigurator 4608 | -9/Exiles | Found AWS/Thermal 4644 | -9/Exiles | Warned to stay clear of 0b10 Research branches 4793 | -9/Exiles | Discovered exit to Mines (range 14) 4814 | -9/Exiles | Stole three prototypes: Superbattery, Trap Reconfigurator, AWS/Thermal 4814 | -9/Exiles | Entered Mines 4814 | -8/Mines | Accompanied by 1 ally 5187 | -8/Mines | Discovered new exit (range 6) 5581 | -8/Mines | Entered Materials 5581 | -8/Materials | Accompanied by 1 ally 5581 | -8/Materials | Evolved 2 slots: Propulsion x1, Utility x1 5582 | -8/Materials | Identified exit to Factory 5791 | -8/Materials | Repaired Adv. Treads? 7091 | -8/Materials | Discovered exit to Factory (range 13) 7437 | -8/Materials | Discovered exit to Factory (range 4) 7585 | -8/Materials | Identified exit to Garrison 7585 | -8/Materials | Entered Garrison 7610 | -8/Garrison | Triggered checkpoint 7632 | -8/Garrison | Triggered checkpoint 7641 | -8/Garrison | Discovered exit to Factory (range 100) 7641 | -8/Garrison | Discovered exit to Factory (range 65) 7641 | -8/Garrison | Discovered exit to Factory (range 46) 7641 | -8/Garrison | Discovered new exit (range 76) 7684 | -8/Garrison | Garrison Relay disabled 7751 | -8/Garrison | Installed Relay Interface Framework 7914 | -8/Garrison | Triggered checkpoint 7934 | -8/Garrison | Triggered checkpoint 7938 | -8/Garrison | Triggered checkpoint 8005 | -8/Garrison | Destroyed 13 combat bots 8408 | -8/Garrison | Expanded RIF knowledge: Signal Jamming 8489 | -8/Garrison | Build established: Trapper-Mutant 8610 | -8/Garrison | Triggered checkpoint 8653 | -8/Garrison | Entered Materials 8653 | -8/Materials | Accompanied by 1 ally 9058 | -8/Materials | Repaired Hrd. Medium Armor Plating 9104 | -8/Materials | Repaired Imp. Cooling System 9209 | -8/Materials | Discovered exit to Factory (range 9) 9257 | -8/Materials | Identified exit to Garrison 9259 | -8/Materials | Entered Garrison 9344 | -8/Garrison | Triggered checkpoint 9360 | -8/Garrison | Spotted B-75 Beast 9361 | -8/Garrison | Spotted B-75 Beast 9396 | -8/Garrison | Discovered exit to Factory (range 15) 9446 | -8/Garrison | Triggered checkpoint 9788 | -8/Garrison | Triggered checkpoint 9839 | -8/Garrison | Core integrity fell below 50% 10004 | -8/Garrison | Triggered checkpoint 10032 | -8/Garrison | Triggered checkpoint 10244 | -8/Garrison | Core integrity fell below 20% 10307 | -8/Garrison | Discovered exit to Factory (range 15) 10340 | -8/Garrison | Expanded RIF knowledge: Zone Cloak 10448 | -8/Garrison | Triggered checkpoint 10545 | -8/Garrison | Discovered exit to Factory (range 10) 10560 | -8/Garrison | Rescued a captive Derelict 10561 | -8/Garrison | Rescued a captive Derelict 10580 | -8/Garrison | Entered Factory 10580 | -7/Factory | Accompanied by 2 allies 10580 | -7/Factory | Evolved 2 slots: Propulsion x1, Utility x1 10581 | -7/Factory | Identified exit to Lower Caves 10582 | -7/Factory | FarCom data flow suspended 11111 | -7/Factory | Repaired Hrd. Medium Armor Plating? 11307 | -7/Factory | Build established: Scavenger-Mutant 11421 | -7/Factory | Cargo convoy interrupted 11453 | -7/Factory | Discovered new exit (range 3) 11458 | -7/Factory | Identified exit to Factory 12100 | -7/Factory | Lost 4 parts (1n2u1w) 12135 | -7/Factory | Identified exit to Garrison 12137 | -7/Factory | Entered Garrison 12318 | -7/Garrison | Triggered checkpoint 12325 | -7/Garrison | Build established: Trapper-Mutant 12497 | -7/Garrison | Garrison Relay disabled 12676 | -7/Garrison | Destroyed 8 combat bots 12927 | -7/Garrison | Discovered exit to Factory (range 11) 13052 | -7/Garrison | Triggered checkpoint 13107 | -7/Garrison | Discovered exit to Factory (range 10) 13149 | -7/Garrison | Expanded RIF knowledge: Hotswap 13221 | -7/Garrison | Entered Factory 13221 | -6/Factory | Evolved 2 slots: Power x1, Utility x1 13313 | -6/Factory | Fabricated B-48 Gladiator? 13457 | -6/Factory | Identified exit to Garrison 13459 | -6/Factory | Entered Garrison 13459 | -6/Garrison | Accompanied by 3 allies 13488 | -6/Garrison | Triggered checkpoint 13534 | -6/Garrison | Garrison Relay disabled 13650 | -6/Garrison | Triggered checkpoint 13650 | -6/Garrison | Triggered checkpoint 13801 | -6/Garrison | Lost 10 parts (1p4n4u1w) 13888 | -6/Garrison | Build established: Bothacker-Mutant 13961 | -6/Garrison | Discovered new exit (range 10) 13969 | -6/Garrison | Spotted B-90 Cyclops 14021 | -6/Garrison | Rewired B-90 Cyclops 14032 | -6/Garrison | Destroyed B-90 Cyclops 14110 | -6/Garrison | Triggered checkpoint 14202 | -6/Garrison | Garrison Relay disabled 14338 | -6/Garrison | Triggered checkpoint 14518 | -6/Garrison | Build established: Botlord-Mutant 14605 | -6/Garrison | Discovered new exit (range 15) 14653 | -6/Garrison | Expanded RIF knowledge: Patrol Navigation 14778 | -6/Garrison | Spotted B-75 Beast 14808 | -6/Garrison | Allies destroyed B-75 Beast 14876 | -6/Garrison | Expanded RIF knowledge: Program Shield 14887 | -6/Garrison | Garrison Relay disabled 15057 | -6/Garrison | Garrison Relay disabled 15214 | -6/Garrison | Entered Factory 15214 | -5/Factory | Accompanied by 1 ally 15214 | -5/Factory | Evolved 2 slots: Utility x2 15814 | -5/Factory | First assault squad dispatched 15821 | -5/Factory | Lost 3 parts (1n2u) 16522 | -5/Factory | Lost 3 parts (2n1u) 16851 | -5/Factory | Identified exit to Garrison 16852 | -5/Factory | Entered Garrison 16866 | -5/Garrison | Triggered checkpoint 17023 | -5/Garrison | Rescued a captive Derelict 17023 | -5/Garrison | Rescued a captive Derelict 17113 | -5/Garrison | Lost 4 parts (1p2n1u) 17226 | -5/Garrison | Triggered checkpoint 17280 | -5/Garrison | Discovered new exit (range 14) 17310 | -5/Garrison | Expanded RIF knowledge: Structural Interface 17347 | -5/Garrison | Found embedded Infiltrators 17424 | -5/Garrison | Triggered checkpoint 17510 | -5/Garrison | Discovered new exit (range 13) 17582 | -5/Garrison | Triggered checkpoint 17610 | -5/Garrison | Triggered checkpoint 17708 | -5/Garrison | Expanded RIF knowledge: Autoassimilate 17743 | -5/Garrison | Discovered new exit (range 11) 17744 | -5/Garrison | Triggered checkpoint 17833 | -5/Garrison | Garrison Relay disabled 17935 | -5/Garrison | Entered Factory 17935 | -5/Factory | Accompanied by 3 allies 18117 | -5/Factory | Discovered new exit (range 2) 18217 | -5/Factory | Garrison activated, responded to threat 18254 | -5/Factory | Identified exit to Garrison 18259 | -5/Factory | Entered Garrison 18493 | -5/Garrison | System corruption reached 10% 18541 | -5/Garrison | Found Relay Coupler [Proto] 18544 | -5/Garrison | Found Relay Coupler [Proto] 18550 | -5/Garrison | Found Relay Coupler [Proto] 18553 | -5/Garrison | Found Relay Coupler [Proto] 18638 | -5/Garrison | Triggered checkpoint 18638 | -5/Garrison | Triggered checkpoint 18672 | -5/Garrison | Heavy support dispatched to Factory 18765 | -5/Garrison | Expanded RIF knowledge: Robot Detection 18773 | -5/Garrison | Discovered new exit (range 12) 18815 | -5/Garrison | Entered Factory 18815 | -4/Factory | Evolved 2 slots: Propulsion x1, Utility x1 18845 | -4/Factory | Lost 3 parts (3n) 19023 | -4/Factory | Discovered new exit (range 13) 19220 | -4/Factory | Repaired Hcp. Storage Unit 19409 | -4/Factory | Crushed by falling debris 19440 | -4/Factory | Lost 8 parts (1p2n3u2w) 19560 | -4/Factory | System corruption reached 10% 19953 | -4/Factory | Discovered new exit (range 16) 19980 | -4/Factory | Discovered new exit (range 16) 19998 | -4/Factory | Entered Extension 20219 | -4/Extension | Energy Cycler disabled 20219 | -4/Extension | Rescued a captive Derelict 20219 | -4/Extension | Rescued a captive Derelict 20220 | -4/Extension | Rescued a captive Derelict 20220 | -4/Extension | Rescued a captive Derelict 20221 | -4/Extension | Rescued a captive Derelict 20222 | -4/Extension | Rescued A7 20222 | -4/Extension | Rescued a captive Derelict 20224 | -4/Extension | Rescued a captive Derelict 20242 | -4/Extension | Rescued a captive Derelict 20243 | -4/Extension | Rescued a captive Derelict 20712 | -4/Extension | Spotted B-86 Titan 20726 | -4/Extension | Spotted B-86 Titan 20743 | -4/Extension | Allies destroyed B-86 Titan 20754 | -4/Extension | Allies destroyed B-86 Titan 20759 | -4/Extension | Extracted ID and sensor layout for unrecognized location from A7's data core 20768 | -4/Extension | Discovered new exit (range 16) 21135 | -4/Extension | Discovered new exit (range 10) 21136 | -4/Extension | Discovered new exit (range 6) 21172 | -4/Extension | Entered Cetus 21172 | -4/Cetus | Accompanied by 14 allies 21190 | -4/Cetus | Spotted Cetus Guard 21190 | -4/Cetus | Spotted Cetus Guard 21191 | -4/Cetus | Spotted Cetus Guard 21191 | -4/Cetus | Spotted Cetus Guard 21199 | -4/Cetus | Allies destroyed Cetus Guard 21202 | -4/Cetus | Allies destroyed Cetus Guard 21204 | -4/Cetus | Allies destroyed Cetus Guard 21285 | -4/Cetus | Discovered new exit (range 15) 21312 | -4/Cetus | Spotted Cetus Guard 21312 | -4/Cetus | Spotted Cetus Guard 21316 | -4/Cetus | Spotted Cetus Guard 21321 | -4/Cetus | Destroyed Cetus Guard 21326 | -4/Cetus | Allies destroyed Cetus Guard 21329 | -4/Cetus | Destroyed Cetus Guard 21330 | -4/Cetus | Spotted Cetus Guard 21335 | -4/Cetus | Allies destroyed Cetus Guard 21340 | -4/Cetus | Discovered new exit (range 16) 21346 | -4/Cetus | Met Revision 17 21426 | -4/Cetus | Entered Archives 21426 | -4/Archives | Accompanied by 6 allies 21491 | -4/Archives | Discovered new exit (range 15) 21526 | -4/Archives | Discovered new exit (range 15) 21693 | -4/Archives | Discovered new exit (range 15) 21881 | -4/Archives | Unable to access archive contents 22129 | -4/Archives | Entered Hub_04(d) 22129 | -4/Hub_04(d) | Accompanied by 4 allies 22138 | -4/Hub_04(d) | Discovered new exit (range 16) 22208 | -4/Hub_04(d) | Network Hub disabled 22212 | -4/Hub_04(d) | Spotted Lightning 22216 | -4/Hub_04(d) | Spotted Lightning 22216 | -4/Hub_04(d) | Spotted Lightning 22221 | -4/Hub_04(d) | Entered Research 22221 | -3/Research | Accompanied by 3 allies 22221 | -3/Research | Evolved 2 slots: Utility x2 22241 | -3/Research | Discovered new exit (range 14) 22320 | -3/Research | Fabricated M-13 Machinist (x1) 22338 | -3/Research | Found Enh. Force Lance 22701 | -3/Research | Identified exit to Research 23337 | -3/Research | Found Adv. Powered Armor 23340 | -3/Research | Identified exit to Garrison 23340 | -3/Research | Entered Garrison 23403 | -3/Garrison | Garrison Relay disabled 23436 | -3/Garrison | Spotted B-86 Titan 23437 | -3/Garrison | Triggered checkpoint 23571 | -3/Garrison | Q-Series assembled to engage unique threat in Research 23671 | -3/Garrison | Expanded RIF knowledge: Threat Obfuscation 23696 | -3/Garrison | Triggered checkpoint 23706 | -3/Garrison | Q-Series assembled to engage unique threat in Research 23714 | -3/Garrison | Garrison Relay disabled 23753 | -3/Garrison | Discovered new exit (range 9) 23761 | -3/Garrison | Identified exit to Research 23935 | -3/Garrison | Q-Series assembled to engage unique threat in Research 24103 | -3/Garrison | Garrison Relay disabled 24222 | -3/Garrison | Discovered exit to Research (range 9) 24237 | -3/Garrison | Q-Series assembled to engage unique threat in Research 24243 | -3/Garrison | Found Relay Coupler [Proto] 24245 | -3/Garrison | Found Relay Coupler [Proto] 24249 | -3/Garrison | Found Relay Coupler [Proto] 24291 | -3/Garrison | Lost 4 parts (2p1n1w) 24312 | -3/Garrison | Spotted B-90 Cyclops 24363 | -3/Garrison | Entered Research 24399 | -3/Research | Found Prototype Device 24399 | -3/Research | Identified Exp. Thermal Shield 24879 | -3/Research | Identified exit to Testing 24943 | -3/Research | Entered Testing 24943 | -3/Testing | Accompanied by 2 allies 25018 | -3/Testing | Lost 7 parts (1n6u) 25044 | -3/Testing | Spotted PH-J33O0NUFC5 25047 | -3/Testing | Assimilated PH-J33O0NUFC5 with formatsys_high 25076 | -3/Testing | Protovariant out of control (PP-QK5ZQLCV37) 25076 | -3/Testing | Unleashed a protovariant (PP-QK5ZQLCV37) 25160 | -3/Testing | Found Fusion Bomb Launcher 25192 | -3/Testing | Found Imp. Powered Armor 25221 | -3/Testing | Found Prototype Device 25221 | -3/Testing | Identified Exp. Shield Generator 25266 | -3/Testing | Garrison activated, responded to threat 25269 | -3/Testing | Found Prototype Protection 25269 | -3/Testing | Identified Centrium Heavy Armor Plating 25343 | -3/Testing | Found System Mapper 25510 | -3/Testing | Garrison activated, responded to threat 25512 | -3/Testing | Identified exit to Garrison 25512 | -3/Testing | Entered Garrison 25512 | -3/Garrison | Accompanied by 3 allies 25552 | -3/Garrison | Spotted B-86 Titan 25584 | -3/Garrison | Triggered checkpoint 25628 | -3/Garrison | Garrison Relay disabled 25764 | -3/Garrison | Triggered checkpoint 25776 | -3/Garrison | Triggered checkpoint 25789 | -3/Garrison | Allies destroyed B-86 Titan 25800 | -3/Garrison | Triggered checkpoint 25804 | -3/Garrison | Triggered checkpoint 25814 | -3/Garrison | Core integrity fell below 50% 25815 | -3/Garrison | Lost 4 parts (2n1u1w) 25879 | -3/Garrison | Destroyed 11 combat bots 25901 | -3/Garrison | Lost 4 parts (1p2n1w) 25953 | -3/Garrison | System corruption reached 10% 26070 | -3/Garrison | Triggered checkpoint 26130 | -3/Garrison | Q-Series assembled to engage unique threat in Research 26273 | -3/Garrison | Discovered exit to Research (range 10) 26411 | -3/Garrison | Found Prototype Processor 26411 | -3/Garrison | Identified Exp. Armor Integrity Analyzer 26435 | -3/Garrison | Found Exp. Targeting Computer 26453 | -3/Garrison | Found Prototype Device 26453 | -3/Garrison | Identified Exp. Shock Absorption System 26541 | -3/Garrison | Discovered exit to Research (range 14) 26566 | -3/Garrison | Spotted B-86 Titan 26640 | -3/Garrison | Q-Series assembled to engage unique threat in Research 26706 | -3/Garrison | Garrison Relay disabled 26749 | -3/Garrison | Discovered exit to Research (range 15) 26792 | -3/Garrison | QS Assembler disabled 26835 | -3/Garrison | Found Prototype Launcher 26835 | -3/Garrison | Identified Adv. Micro-nuke Launcher 26840 | -3/Garrison | Lost 5 parts (1p1n1u2w) 26842 | -3/Garrison | Found Prototype Launcher 26842 | -3/Garrison | Identified Hellfire Missile Launcher 26894 | -3/Garrison | Expanded RIF knowledge: Command Fork 26994 | -3/Garrison | Entered Research 26994 | -2/Research | Evolved 2 slots: Utility x2 27083 | -2/Research | Found Launcher Loader 27103 | -2/Research | Identified exit to DSF 27161 | -2/Research | Identified exit to Quarantine 27618 | -2/Research | Spotted B-90 Cyclops 27681 | -2/Research | Entered Quarantine 27723 | -2/Quarantine | Found Alien Artifact 27724 | -2/Quarantine | Identified Phase Redirector 27868 | -2/Quarantine | Crushed by falling debris 27868 | -2/Quarantine | System corruption reached 10% 27924 | -2/Quarantine | Found Alien Artifact 27924 | -2/Quarantine | Identified Phase Armor 28007 | -2/Quarantine | Identified exit to Access 28171 | -2/Quarantine | Found Alien Artifact 28204 | -2/Quarantine | Found Prototype Slashing Weapon 28204 | -2/Quarantine | Identified Molecular Scythe 28218 | -2/Quarantine | Spotted Alpha 7 28256 | -2/Quarantine | Found Alien Launcher 28273 | -2/Quarantine | Entered Access 28273 | -1/Access | Accompanied by 1 ally 28273 | -1/Access | Evolved 2 slots: Utility x2 28935 | -1/Access | Identified exit to Surface 29116 | -1/Access | Repaired Coolant Network 29385 | *** | Escaped! Last Messages --------------- 29301_ Y-72 Warden heat short circuits Particle Reactor. 29303_ Y-72 Warden suffers critical hit (Burn). 29303_ Y-72 Warden destroyed. 29306_ U-05 Engineer builds a Wall. 29313_ Acquired 40 matter. 29325_ RIF reveals location of hidden door. 29325_ O-32 Director: "IFF HANDSHAKE FAILED. SECURING TERMINAL." 29326_ O-32 Director uses terminal to summon reinforcements. 29326_ ALERT: Hostiles spotted, dispatching reinforcements to Terminal A016. 29326_ O-32 Director locks terminal. 29341_ Connecting with Terminal... >>Traps(Locate) Found 4 traps in 1 array: 4x Hellfire Trap Map updated. 29351_ Hellfire Trap reprogrammed. 29374_ Connecting with Terminal... >>Open(Door) Sealed Barrier opened. 29378_ The Access Shell folds into the floor. Map ----- +----------------------------------------------------+ | ??????????# #"" "" #??????????????????????? | | ######????# #"" """" #??????????????????????? | | ???# #T """" #??????????????????????? | | ??# #"" """" #??????????????????????? | | " ?+ #"" """" #??????????????????????? | | "" # #"" """" #??????????????????????? | | "" # # "" #??????????????????????? | | "" + + "" #??????????????????????? | | "" # ##############??????????????????????? | | ""??# #???????????????????????????????????? | | ????# #???????????????????????????????????? | | ??????# #???????????????????????????????????? | | ????????# #???????????????????????????????????? | | ??????????# #???????????????????????????????????? | | ??????????# #???????????????????????????????????? | | ??????????# #???????????????????????????????????? | | ??????????# #???????????????????????????????????? | | ??????????# #???????????????????????????????????? | | ??????????# #?????###???????????????????????????? | | ??????????# ####### ##########??????????????????? | | ??????????# """T""" "??????????????????? | | ??????????# """ """ "??????????????????? | | ??????????# "??????????????????? | | ??????????# n "??????????????????? | | ??????????# n "" "??????????????????? | | ??????????# @" "??????????????????? | | ??????????# "??????????????????? | | ??????????# "??????????????????? | | ??????????# "??????????????????? | | ??????????# "??????????????????? | | ??????????# ####### ##########??????????????????? | | ??????????# #?????###???????????????????????????? | | ??????????# #???????????????????????????????????? | | ??????????# #???????????????????????????????????? | | ??????????# ????????????????????????????????????? | | ??????????# ????????????????????????????????h???? | | ??????????# ????????????????????????????????????? | | ??????????# ????????????????????????????????h???? | | ??????????# ????????????????????????????????????? | | ??????????# ????????????????????????????????????? | | ??????????? ?????????????????????????????????????? | | ?????????????????????????????????????????????????? | | ?????????????????????????????????????????????????? | | ?????????????????????????????????????????????????? | | ?????????????????????????????????????????????????? | | ?????????????????????????????????????????????????? | | ?????????????????????????????????????????????????? | | ?????????????????????????????????????????????????? | | ?????????????????????????????????????????????????? | | ?????????????????????????????????????????????????? | +----------------------------------------------------+ Best States ------------- Heat Dissipation 161 Energy Generation 45 Energy Capacity 1700 Matter Stores 300 Matter Capacity 300 Sight Range 16 Robot Scan Range 15 Terrain Scan Range 24 Terrain Scan Density 10 EM Shielding 4 Corruption Block 20 Armor Coverage 1200 Resistance: KI 30 Resistance: TH 30 Utility Shielding 66 Phase Shifting 5 Evasion (%) 55 Targeting Accuracy 12 Melee Accuracy 5 Target Analysis 8 Core Analysis 6 Recoil Reduction 4 Salvage Targeting 3 Offensive Hacking 20 Defensive Hacking 24 Relay Coupler Types 6 Relay Coupler Value 107 Authchip Count 1 Trap Extractor Capacity 8 Item Schematics ----------------- Imp. Datajack | -9/Materials | Scanalyzed Huge Storage Unit | -9/Materials | Scanalyzed Trap Extractor | -8/Materials | Scanalyzed Cld. Field Propulsion Drive | -3/Garrison | Archive Hvy. Wave Gun | -3/Garrison | Archive Robot Schematics ------------------ M-13 Machinist | -10/Mines | Hacked K-01 Serf | -3/Garrison | Archive Fabricated ------------ B-48 Gladiator | x3 | -6/Factory | Preloaded M-13 Machinist | x1 | -3/Research | Authchip Alien Tech Used ----------------- Phase Redirector Phase Armor Achievements -------------- None Challenges ------------ None Game ------ Seed MicroCoilNetwork Manual? 0 Play Time 06:21:01 Cumulative 366.2 hours Start 2023.11.15 @ 22:13:01 End 2023.11.26 @ 18:57:58 Sessions 11 Manual Loads 0 Difficulty Rogue Special Mode None Game No. 229 Rogue 206 Adventurer 6 Explorer 17 Win Type 0 Total 26 Types 18/0/4/1/0/1/1/1/0 Lore% 95 Gallery% 96 Achievement% 79 Wizard Run 0 Options --------- ASCII 0 Keyboard 0 Movement Numpad Keybinds 0 Fullscreen 1 Font 12/Fuzzy Map View 83x54 Tactical HUD 1 Map Filters NONE Filters NONE Steam 1 RUN: bef3dcf3-df72-40f6-838b-164a554e0cd5